Cogmind - Beta 15 @@@ ROGUE MODE // 2025.09.01 @ 12:10:46 Player: Dadrick Result: Destroyed by Executioner with Helical Railgun Performance ------------- Evolutions (9) 4500 Regions Visited (41) 8200 Robots Destroyed (522) 2610 Value Destroyed (30697) 30697 Prototype IDs (81) 1620 Alien Tech Used (3) 600 Bonus (31632) 31632 TOTAL SCORE: 79859 Bonus ------- Triggered High Security 1000 High Alert Combat Kills 6775 Follower Combat Kills 11083 Entered Garrisons 1600 Used RIF Installer 5000 Network Hubs Disabled 200 Aligned with FarCom 300 Met R17 at Cetus 500 Found Hidden Lab 3000 Met R17 at Research 2000 Destroyed MAIN.C Guards 500 Friendly Fire -326 Cogmind --------- Core Integrity 0/1600 Matter 285/300 Energy 100/100 System Corruption 24% Temperature Cool (0) Movement Core (50) Location -1/Command Parts ------- > --- POWER (3) -------- (None) > --- PROPULSION (6) --- (None) > --- UTILITY (13) ----- (None) > --- WEAPON (4) ------- (None) > --- INVENTORY (5) ---- Light Quantum Reactor Biometal Medium Treads Long-range Terrain Scanner Linear Accelerator Peak State ------------ > --- POWER ------------ Reinforced Antimatter Reactor Reinforced Quantum Reactor Reinforced Quantum Reactor > --- PROPULSION ------- Armored Heavy Treads Improved Heavy Siege Treads Biometal Heavy Treads > --- UTILITY ---------- Experimental Coolant Injector Huge Storage Unit Advanced Energy Well Advanced Target Analyzer Graphene Brace AEGIS Remote Shield Improved Point Defense System Deep Network Scanner Relay Coupler [Sentry] Relay Coupler [Specialist] Relay Coupler [Hunter] Relay Coupler [Proto] > --- WEAPON ----------- Enhanced Nova Cannon Enhanced Nova Cannon Warp Cannon Guided Remote Datajack > --- INVENTORY -------- Particle Reactor Quantum Reactor Armored Heavy Treads High-density Centrium Wheel High-density Centrium Wheel Advanced Heat Sink Compact Matter Pod Long-range Terrain Scanner Quantum Capacitor Advanced Remote Force Field Relay Coupler [Sentry] Relay Coupler [Sentry] Relay Coupler [Hunter] Relay Coupler [Hunter] Relay Coupler [Proto] Relay Coupler [Proto] Relay Coupler [Proto] High-powered Tractor Beam Fusion Bomb Launcher Advanced Remote Datajack Improved Plasma Cutter Enhanced Force Lance [Rating: 211] Favorites ----------- Power Light Quantum Reactor Engine Light Angular Momentum Engine Power Core Light Nuclear Core Reactor Light Quantum Reactor Propulsion Light Treads Treads Light Treads Leg Carbon-fiber Leg Wheel High-density Centrium Wheel Flight Unit Impulse Thruster Utility Huge Storage Unit Device Advanced Cooling System Storage Huge Storage Unit Processor Advanced Terrain Scan Processor Hackware Relay Coupler [NC] Protection Improved Medium Armor Plating Weapon Enhanced Nova Cannon Energy Gun Quantum Rifle Energy Cannon Enhanced Nova Cannon Ballistic Gun KE Penetrator Ballistic Cannon Slug Cannon Launcher Heavy Shock Bomb Launcher Special Weapon Advanced Remote Datajack Impact Weapon Heavy Hammer Slashing Weapon Axe Piercing Weapon Enhanced Force Lance Build | -11 -10 -10 -9 -9 -9 -8 -8 -8 -8 -7 -7 -7 -7 -7 -7 -6 -6 -6 -6 -6 -6 -5 -5 -5 -5 -5 -5 -5 -4 -4 -4 -4 -4 -3 -3 -2 -2 -2 -2 -1 -1 ------- Run | Yrd Mat Min Mat Min Exi Min Mat Gar Mat Fac Was Fac Gar Sto Gar Fac Was Fac Gar Fac Gar Fac Was Fac Ext Cet Arc Hub Fac Was Fac Arm Lab Res Gar Res Gar Res Gar Acc Com Slots Evolved 18 | . . . 2 . . . 2 . . 2 . . . . . 2 . . . . . 2 . . . . . . 2 . . . . 2 . 2 . . . 2 . Power 2 | . . . . . . . . . . . . . . . . . . . . . . 1 . . . . . . 1 . . . . . . . . . . . . Propulsion 4 | . . . 1 . . . . . . . . . . . . 1 . . . . . . . . . . . . . . . . . . . . . . . 2 . Utility 10 | . . . . . . . 1 . . 2 . . . . . 1 . . . . . 1 . . . . . . 1 . . . . 2 . 2 . . . . . Weapon 2 | . . . 1 . . . 1 . . . . . . . . . . . . . . . . . . . . . . . . . . . . . . . . . . Parts Attached 508 | 7 12 4 12 . 1 . 12 7 9 11 7 3 2 7 26 2 4 5 37 8 17 1 6 10 40 9 9 7 30 6 35 10 7 12 13 38 26 5 8 11 32 Power 63 | 1 . 1 1 . . . 1 1 1 1 1 . . . 3 . 1 . 2 1 3 . 1 1 3 1 1 . 5 1 5 3 . 2 2 8 3 1 2 2 4 Engine 11 | 1 . 1 1 . . . . 1 . . . . . . 1 . 1 . . . 2 . . . 2 . . . . 1 . . . . . . . . . . . Core 20 | . . . . . . . 1 . 1 1 . . . . 2 . . . 1 1 . . . 1 1 . . . 3 . 5 2 . . . 1 . . . . . Reactor 32 | . . . . . . . . . . . 1 . . . . . . . 1 . 1 . 1 . . 1 1 . 2 . . 1 . 2 2 7 3 1 2 2 4 Propulsion 105 | 2 4 3 6 . . . 6 2 2 2 2 . . 2 4 . 2 . 9 . 5 . 2 . 12 1 5 1 4 2 3 1 . 3 . 3 2 . 1 2 12 Treads 73 | 2 . 2 6 . . . 6 2 2 2 2 . . 2 3 . 2 . . . . . 2 . 10 1 5 1 4 2 . 1 . 1 . 2 2 . 1 . 10 Leg 16 | . 4 1 . . . . . . . . . . . . . . . . 8 . 3 . . . . . . . . . . . . . . . . . . . . Wheel 14 | . . . . . . . . . . . . . . . 1 . . . 1 . 2 . . . 2 . . . . . 3 . . 2 . 1 . . . 2 . Hover . | . . . . . . . . . . . . . . . . . . . . . . . . . . . . . . . . . . . . . . . . . . Flight 2 | . . . . . . . . . . . . . . . . . . . . . . . . . . . . . . . . . . . . . . . . . 2 Utility 218 | 2 1 . 1 . . . 4 1 4 4 2 3 2 4 9 2 1 2 18 5 6 1 1 5 16 4 3 3 15 2 17 2 4 6 10 19 18 3 4 5 9 Device 90 | 1 . . 1 . . . 2 . . 2 . 2 . . 4 . . 1 6 4 3 . . 3 6 1 1 1 7 1 10 1 3 5 2 7 6 1 . 4 5 Storage 8 | 1 1 . . . . . . . 1 1 . . 1 . . 1 . . . . . . . . 1 . . . 1 . . . . . . . . . . . . Processor 8 | . . . . . . . . . . . . . . . . 1 . . . . 1 . . . . . . . 1 . 2 . . . . 2 1 . . . . Hackware 64 | . . . . . . . . . 1 . 1 . 1 4 2 . 1 1 8 1 2 1 . 1 4 1 2 . 5 . . . 1 . 6 7 5 1 4 1 3 Protection 48 | . . . . . . . 2 1 2 1 1 1 . . 3 . . . 4 . . . 1 1 5 2 . 2 1 1 5 1 . 1 2 3 6 1 . . 1 Artifact . | . . . . . . . . . . . . . . . . . . . . . . . . . . . . . . . . . . . . . . . . . . Weapon 122 | 2 7 . 4 . 1 . 1 3 2 4 2 . . 1 10 . . 3 8 2 3 . 2 4 9 3 . 3 6 1 10 4 3 1 1 8 3 1 1 2 7 Energy Gun 34 | 1 2 . . . . . . 1 . . . . . . 7 . . 1 4 . 1 . . . 3 3 . 2 1 . . 3 1 . . 4 . . . . . Energy Cannon 13 | . . . . . . . . . . . . . . . . . . . 1 1 . . 1 . . . . . . . 1 . 1 . . 3 3 . . 2 . Ballistic Gun 13 | 1 . . . . . . . . . 2 . . . . . . . . 2 . . . . . . . . . 3 . 4 . . . . . . . . . 1 Ballistic Cannon 20 | . 3 . 2 . 1 . . 1 1 . 1 . . 1 2 . . . . . 1 . 1 . . . . . 1 . 4 . . . . . . . . . 1 Launcher 12 | . 1 . 1 . . . 1 . . 1 1 . . . . . . . . . 1 . . 1 1 . . . . . 1 . . . . 1 . 1 . . 1 Special Weapon 13 | . 1 . . . . . . 1 1 . . . . . 1 . . 1 1 . . . . 2 . . . 1 . 1 . . 1 . 1 . . . 1 . . Impact Weapon 7 | . . . 1 . . . . . . . . . . . . . . 1 . . . . . . 5 . . . . . . . . . . . . . . . . Slashing Weapon 7 | . . . . . . . . . . 1 . . . . . . . . . 1 . . . . . . . . . . . 1 . . . . . . . . 4 Piercing Weapon 3 | . . . . . . . . . . . . . . . . . . . . . . . . 1 . . . . 1 . . . . 1 . . . . . . . Special Melee Weapon . | . . . . . . . . . . . . . . . . . . . . . . . . . . . . . . . . . . . . . . . . . . Unidentified Prototypes 21 | . . . 1 . . . . . . . . . . 1 . . . . . . . . . . 2 3 . . 1 . 1 . 7 2 . 1 1 . . . 1 Corrupted Parts 1 | . . 1 . . . . . . . . . . . . . . . . . . . . . . . . . . . . . . . . . . . . . . . System Corruption 3 | . . 3 . . . . . . . . . . . . . . . . . . . . . . . . . . . . . . . . . . . . . . . Parts Lost 154 | . . . . . . . 2 1 . . . . . . 20 . . 1 7 . 16 . . 1 21 . 2 9 8 . 9 7 . . 5 13 4 . 1 3 24 Power 24 | . . . . . . . . . . . . . . . 3 . . . . . 1 . . . 4 . . . 1 . 3 2 . . 2 3 1 . . . 4 Propulsion 29 | . . . . . . . 1 . . . . . . . 2 . . . 2 . 4 . . . 6 . 2 2 1 . 1 1 . . . 1 1 . . . 5 Utility 57 | . . . . . . . . 1 . . . . . . 8 . . . 3 . 5 . . 1 5 . . 4 5 . 2 2 . . 1 6 1 . 1 3 9 Weapon 44 | . . . . . . . 1 . . . . . . . 7 . . 1 2 . 6 . . . 6 . . 3 1 . 3 2 . . 2 3 1 . . . 6 Highest Loss Streak 21 | . . . . . . . 1 1 . . . . . . 13 . . 1 7 . 12 . . 1 17 . 2 9 5 . 3 6 . . 5 4 3 . 1 2 21 To Critical Strikes 1 | . . . . . . . . . . . . . . . . . . . . . . . . . 1 . . . . . . . . . . . . . . . . Average Backups 20 | 2 9 15 13 13 12 13 12 13 14 18 23 23 22 23 18 23 24 24 24 24 18 20 22 23 17 24 22 21 21 22 22 20 24 24 23 22 21 22 22 22 16 Power 1 | . 1 1 . 1 1 1 1 1 1 1 2 1 1 1 . 1 2 2 2 2 1 2 2 2 1 1 1 1 1 1 . . . . . 1 1 1 1 1 1 Propulsion 1 | . 2 5 4 2 2 2 1 1 1 2 1 3 3 3 1 . . 1 . 2 1 1 1 . . 2 2 1 1 2 1 . . . 2 1 . 1 1 1 2 Utility 12 | . 2 3 2 5 5 5 5 7 8 9 13 12 11 12 10 15 15 15 15 15 12 16 17 18 12 14 14 12 12 13 13 13 15 14 13 11 14 15 15 16 9 Weapon 3 | 1 4 6 5 4 3 4 3 2 2 4 6 5 5 4 3 3 4 3 3 2 1 . . 2 2 3 2 2 2 3 3 2 4 4 3 4 3 3 2 2 2 Tool/Special . | . . . . . . . . . . . . . . . . . . . . . . . . . . . . . . . . . . . . . . . . . . Unused Backups 89 | . 1 . 7 . . . . 4 2 3 5 2 5 1 . . 3 2 5 . 1 . . 4 . 1 . . 3 1 9 . . 4 9 2 6 . 1 . 8 Power 8 | . . . . . . . . . . . . 1 . . . . 1 . 1 . . . . . . . . . . . . . . . 1 . 2 . . . 2 Propulsion 7 | . . . 2 . . . . . . . . 1 . . . . . . . . . . . . . . . . . . 1 . . 1 . . 1 . . . 1 Utility 53 | . . . 1 . . . . 4 1 1 2 . 5 . . . 1 2 4 . 1 . . 4 . . . . 2 1 6 . . 3 8 1 2 . 1 . 3 Weapon 21 | . 1 . 4 . . . . . 1 2 3 . . 1 . . 1 . . . . . . . . 1 . . 1 . 2 . . . . 1 1 . . . 2 Tool/Special . | . . . . . . . . . . . . . . . . . . . . . . . . . . . . . . . . . . . . . . . . . . Average Slot Usage (%) 87 | . 100 99 90 88 88 88 83 81 87 92 95 84 83 83 81 73 80 78 94 99 86 87 88 84 89 93 93 92 86 76 77 87 79 93 92 89 90 91 91 94 72 Engine 2 | . 14 14 11 11 11 11 6 7 1 . . . . . 3 . 3 6 . 5 5 5 5 4 5 6 1 . . 4 2 . . . . . . . . . . Core 2 | . . . . . . . 2 1 7 7 5 . . . 1 6 2 . 1 . . . . . 2 . . . 3 10 11 12 10 2 . . . . . . . Reactor 4 | . . . . . . . . . . . 1 7 7 7 1 . . . 3 . . . 4 5 2 4 8 11 8 . . 2 5 10 12 11 11 12 12 11 9 Treads 10 | . . . 33 33 33 33 26 27 26 23 21 15 15 15 12 6 6 6 1 . . . 7 11 15 5 15 16 11 11 7 5 5 4 4 4 3 4 4 3 11 Leg 3 | . 27 27 . . . . . . . . . . . . . . . . 16 26 24 23 5 . . . . . . . . . . . . . . . . . . Wheel 3 | . . . . . . . . . . . . . . . 1 6 6 6 2 . . . . . 2 11 1 . . . 2 9 10 9 9 8 8 8 8 13 2 Device 11 | . 14 14 10 11 11 11 10 6 . 9 7 14 15 6 8 6 . 3 10 5 12 17 13 8 11 13 16 15 13 4 10 16 17 25 19 19 10 10 13 15 9 Storage 6 | . 14 14 11 11 11 11 9 9 9 7 7 7 8 8 7 6 6 6 6 6 5 5 5 5 3 5 10 11 7 5 5 5 5 4 4 4 4 4 4 4 4 Processor 3 | . . . . . . . . . . . . . . . . . 6 6 6 6 5 5 5 5 2 . . . 3 . 2 5 5 4 4 6 8 8 8 7 2 Hackware 9 | . . . . . . . . . 7 7 15 7 5 14 9 . 5 7 6 13 5 10 11 10 7 5 5 5 8 15 9 5 6 9 12 15 22 21 21 21 16 Protection 5 | . . . . . . . 6 11 10 11 7 7 7 7 7 13 13 6 8 6 3 . 2 4 7 13 5 6 5 2 3 5 5 3 6 1 3 4 2 . . Energy Gun 5 | . 4 . . . . . . 2 9 5 2 7 7 7 10 26 20 18 12 13 9 5 5 2 2 14 17 16 4 . . 4 2 8 6 3 . . . . . Energy Cannon 2 | . . . . . . . . . . . . . . . . . . . . . 2 5 5 5 2 . . . . . . . 1 . 2 4 10 12 10 6 2 Ballistic Gun 1 | . . . . . . . . . . 3 9 . . . . . . . . . . . . . . . . . 7 15 9 2 . . . . . . . . . Ballistic Cannon 3 | . 22 28 13 11 11 11 9 8 7 7 1 7 7 7 5 . . . . . . . 2 5 2 . . . . . 4 6 . . . . . . . . . Special Weapon 2 | . . . . . . . . . 6 5 5 . . 1 2 . 6 1 5 6 5 5 5 5 3 2 . . 1 4 . . . 4 3 3 4 4 4 3 2 Impact Weapon 1 | . . . 1 10 11 11 9 6 2 . . . . . . . . 4 5 . . . . . 6 5 5 4 3 . . . . . . . . . . . . Slashing Weapon 1 | . . . . . . . . . . 1 7 7 6 5 5 . . . . 5 2 . . . . . . . . . . . 5 1 . . . . . . 3 Piercing Weapon 1 | . . . . . . . . . . . . . . . . . . . . . . . . . 2 . . . 1 . 4 4 . 2 4 4 1 . 1 2 1 Peak Build Rating 211 | 7 13 13 19 18 19 19 31 42 41 55 66 66 70 71 69 56 67 69 93 92 92 71 104 110 108 101 118 134 135 120 121 118 142 169 172 187 181 177 181 205 211 Average Rating 96 | 5 11 12 17 18 18 19 24 33 39 48 48 63 68 68 49 51 61 66 75 88 70 70 96 105 75 90 113 114 121 110 107 107 104 155 164 175 172 174 175 195 155 On Entrance 82 | . 7 13 11 18 18 19 19 31 39 39 44 63 66 68 68 50 56 67 67 91 87 69 71 104 108 71 101 115 111 88 120 96 108 135 169 161 181 176 174 181 203 Naked Turns 109 | . . . . . . . . . . . . . . . . . . . . . 38 . . . 59 . . . . . . . . . . . . . . . 12 Heaviest Build 229 | 13 34 34 45 44 44 44 50 58 56 113 120 126 127 127 124 122 126 126 133 127 132 122 151 170 156 159 161 165 167 174 179 161 160 179 194 205 215 226 229 224 225 Greatest Support 220 | 40 40 40 60 60 60 60 66 66 62 68 90 90 90 90 90 28 70 70 95 95 95 65 140 140 140 80 136 160 160 150 150 80 32 40 40 40 40 40 40 72 220 Greatest Overweight (x) 8 | . 1 1 . . . . 1 1 . 1 1 1 1 1 4 4 4 4 8 1 6 1 2 1 7 7 7 1 1 1 5 7 4 5 4 5 5 5 5 5 5 Average Overweight (x) 2 | . . . . . . . . . . . 1 1 1 1 1 4 3 3 4 1 . 1 1 . 2 6 1 . . 1 2 3 3 4 3 3 4 5 5 2 . Largest Inventory Capacity 25 | 8 15 15 15 15 15 15 15 15 15 25 25 25 25 25 25 25 25 25 25 25 25 25 25 25 25 25 25 25 25 25 25 25 25 25 25 25 25 25 25 25 25 Average Capacity 22 | 7 11 15 15 15 15 15 15 15 15 20 25 25 25 25 25 25 25 25 25 25 22 25 25 25 19 25 25 25 25 25 25 25 25 25 25 25 25 25 25 25 23 Most Carried 25 | 5 15 15 15 15 15 15 15 15 15 25 25 25 25 25 25 24 25 25 25 25 25 21 25 25 25 25 25 25 25 25 25 25 25 25 25 25 25 25 25 25 25 Average Carried 21 | 2 9 14 14 15 14 15 14 14 14 18 24 24 24 24 19 23 24 24 24 24 18 20 22 24 18 24 24 23 23 23 24 22 24 24 24 24 24 24 24 24 18 Final Capacity 25 | 8 15 15 15 15 15 15 15 15 15 25 25 25 25 25 25 25 25 25 25 25 25 25 25 25 25 25 25 25 25 25 25 25 25 25 25 25 25 25 25 25 5 Final Carried 25 | 5 15 14 15 15 15 15 15 15 15 24 25 25 25 25 22 23 25 24 25 25 20 21 25 25 25 25 25 17 24 25 25 21 25 25 25 25 25 25 25 24 4 Class Distribution -------------------- 28% | Botlord-Tank 13% | Botlord-Assassin 12% | Bothacker-Tank 8% | Mutant 6% | Tank 6% | Scavenger-Tank 4% | Botlord-Skirmisher 3% | Scavenger-Mutant 3% | Scavenger-Skirmisher 3% | Bothacker-Mutant Dominant Class ---------------- Mutant | -10/Materials Mutant | -10/Mines Scavenger-Gunner | -9/Materials Scavenger-Mutant | -9/Mines Scavenger-Mutant | -9/Exiles Scavenger-Mutant | -8/Mines Mutant | -8/Materials Mutant | -8/Garrison Scavenger-Skirmisher | -8/Materials Tank | -7/Factory Scavenger-Skirmisher | -7/Waste Tank | -7/Factory Tank | -7/Garrison Bothacker-Tank | -7/Storage Mutant | -7/Garrison Bothacker-Tank | -6/Factory Bothacker-Tank | -6/Waste Bothacker-Tank | -6/Factory Bothacker-Tank | -6/Garrison Bothacker-Skirmisher | -6/Factory Botlord-Skirmisher | -6/Garrison Botlord-Skirmisher | -5/Factory Botlord-Tank | -5/Waste Botlord-Tank | -5/Factory Botlord-Tank | -5/Extension Scavenger-Tank | -5/Cetus Scavenger-Tank | -5/Archives Scavenger-Tank | -5/Hub_04(d) Botlord-Tank | -4/Factory Botlord-Tank | -4/Waste Botlord-Tank | -4/Factory Bothacker-Assassin | -4/Armory Bothacker-Mutant | -4/Lab Botlord-Assassin | -3/Research Botlord-Assassin | -3/Garrison Botlord-Assassin | -2/Research Botlord-Tank | -2/Garrison Botlord-Tank | -2/Research Botlord-Tank | -2/Garrison Botlord-Assassin | -1/Access Botlord-Mutant | -1/Command Resources | -11 -10 -10 -9 -9 -9 -8 -8 -8 -8 -7 -7 -7 -7 -7 -7 -6 -6 -6 -6 -6 -6 -5 -5 -5 -5 -5 -5 -5 -4 -4 -4 -4 -4 -3 -3 -2 -2 -2 -2 -1 -1 ----------- Run | Yrd Mat Min Mat Min Exi Min Mat Gar Mat Fac Was Fac Gar Sto Gar Fac Was Fac Gar Fac Gar Fac Was Fac Ext Cet Arc Hub Fac Was Fac Arm Lab Res Gar Res Gar Res Gar Acc Com Matter Collected 20541 | 276 478 85 825 172 . 10 625 907 352 608 277 60 255 313 1437 . 144 105 1213 213 729 . 251 342 1089 154 143 50 1201 233 895 590 . 588 941 1512 1179 175 704 401 1009 Remotely 1900 | . . . 483 . . . 54 220 . . . . . . 568 . . . . . . . . . . . . . . . 80 . . 336 . 159 . . . . . Salvage Created 20789 | 108 760 56 1037 203 . 64 349 1118 427 820 23 80 430 242 833 . . 419 609 122 526 . . 731 1488 33 214 401 1344 268 737 546 . . 611 2341 966 345 965 1259 314 Parts 1022 | 9 49 8 60 11 . . 29 79 19 24 2 11 15 9 40 . . 14 23 3 25 . . 42 46 3 9 21 79 8 31 25 . . 23 104 25 23 55 76 22 Haulers Intercepted 17 | . 2 . 5 . . . 3 . 2 2 . 1 . . . . . 1 . . . . . 1 . . . . . . . . . . . . . . . . . Recyclers Shooed 17 | . 1 . 1 . . . . . . 5 . . . . . . . . . . . . . 1 . . . 1 . . . . . . . 6 . . . . 2 Parts Field Recycled . | . . . . . . . . . . . . . . . . . . . . . . . . . . . . . . . . . . . . . . . . . . Retrieved Matter . | . . . . . . . . . . . . . . . . . . . . . . . . . . . . . . . . . . . . . . . . . . Parts Self-Destructed . | . . . . . . . . . . . . . . . . . . . . . . . . . . . . . . . . . . . . . . . . . . Prevented . | . . . . . . . . . . . . . . . . . . . . . . . . . . . . . . . . . . . . . . . . . . Kills | -11 -10 -10 -9 -9 -9 -8 -8 -8 -8 -7 -7 -7 -7 -7 -7 -6 -6 -6 -6 -6 -6 -5 -5 -5 -5 -5 -5 -5 -4 -4 -4 -4 -4 -3 -3 -2 -2 -2 -2 -1 -1 ------- Run | Yrd Mat Min Mat Min Exi Min Mat Gar Mat Fac Was Fac Gar Sto Gar Fac Was Fac Gar Fac Gar Fac Was Fac Ext Cet Arc Hub Fac Was Fac Arm Lab Res Gar Res Gar Res Gar Acc Com Combat Hostiles Destroyed 393 | . 15 6 28 4 . . 8 36 9 15 . . 7 4 30 . . 5 13 . 14 . . 9 12 . 1 4 25 1 14 8 . . 12 39 11 6 23 28 6 Melee 16 | . . . . . . . . 2 . . . . . . . . . . . . 1 . . . 1 . . . . . 6 3 . . . . . . . . 3 Guns 84 | . 7 . . . . . . 7 7 5 . . 6 4 2 . . 3 6 . 4 . . . . . 1 3 23 1 1 3 . . 1 . . . . . . Cannons 168 | . 5 6 15 . . . 7 22 . 3 . . 1 . 13 . . . . . . . . 8 7 . . . . . 5 . . . 6 18 9 6 15 19 3 AOE 109 | . 3 . 13 4 . . 1 5 2 7 . . . . 15 . . 2 7 . 8 . . . 2 . . . 2 . 2 . . . 3 17 . . 7 9 . Classes Destroyed 22 | 2 5 . 2 . . . 1 2 1 . . . 1 . . . . 1 1 . . . . . 1 . . . . 1 . 1 . . . . . 1 2 . . Worker 24 | . . . 1 1 . 1 3 . . . . 1 . . . . . . . 1 . . . 2 1 . . 4 1 . . . . . . 6 . . . . 2 Builder 24 | . 2 . 3 1 . 1 2 . . 1 . 1 . . . . . 1 . . . . . 2 4 . . . . . 1 . . . . 5 . . . . . Tunneler 8 | 2 . . 1 . . 1 1 . . . . . . . . . . . . . . . . . 2 . . . . . . . . . . 1 . . . . . Hauler 17 | . 2 . 5 . . . 3 . 2 2 . 1 . . . . . 1 . . . . . 1 . . . . . . . . . . . . . . . . . Recycler 25 | 1 4 . . 2 . . 1 . . 4 . . . . . . . 1 . 1 . . . 1 6 . . . . . 1 . . . . 3 . . . . . Mechanic 2 | . . . . . . . 1 . . . . . . . . . . . . . . . . . . . . . 1 . . . . . . . . . . . . Operator 7 | . . . . . . . . . . . . . . . . . . . . . . . . . 2 . 3 2 . . . . . . . . . . . . . Watcher 18 | . 3 . 3 . . . 2 . . . . . . . . . . 1 . . . . . 1 2 1 . 1 . . . 2 . . . 1 . . . . 1 Swarmer 105 | . 6 6 3 4 . . . 10 2 3 . . . . 8 . . . 4 . 2 . . . 2 . . . 5 . 3 . . . 3 11 2 2 10 18 1 Cutter 1 | . . . . . . . . . . . . . . . . . . . . . . . . . . . . . . . . . . . . . . . 1 . . Saboteur 2 | . . . . . . . . . . . . . . . . . . . . . . . . . . . . . . . . 1 . . . . . . . . 1 Grunt 127 | . 9 . 17 . . . 6 13 6 9 . . 3 1 14 . . . 3 . 8 . . 2 4 . . 3 7 . 4 . . . 1 6 3 . 3 4 1 Brawler 7 | . . . . . . . . . . . . . 1 1 . . . . 1 . . . . . . . . . . . . . . . . 2 1 . . 1 . Duelist 3 | . . . . . . . . . 1 . . . 1 1 . . . . . . . . . . . . . . . . . . . . . . . . . . . Sentry 37 | . . . 8 . . . 2 2 . . . . 1 1 5 . . . 3 . . . . . 3 . 1 1 2 . 3 1 . . . 3 1 . . . . Demolisher 1 | . . . . . . . . . . . . . . . . . . . . . . . . . . . . . . . . . . . . . . 1 . . . Specialist 4 | . . . . . . . . 3 . . . . . . . . . . 1 . . . . . . . . . . . . . . . . . . . . . . Hunter 17 | . . . . . . . . . . . . . . . . . . 4 2 . . . . . 1 . . . 2 . . 2 . . . 4 . . 2 . . Programmer 83 | . . . . . . . . 8 . 3 . . 1 . 3 . . 1 . . 3 . . 7 . . . . 9 . 4 4 . . 8 12 3 3 6 5 3 Behemoth 6 | . . . . . . . . . . . . . . . . . . . 1 . 1 . . . 2 . . . . . . . . . . 1 1 . . . . Compactor 1 | . . . . . . . . . . . . . . . . . . . . . . . . . . . . . . 1 . . . . . . . . . . . Executioner 1 | . . . . . . . . . . . . . . . . . . . . . . . . . . . . . . . . . . . . . . . 1 . . Surgeon 1 | . . . . . . . . . . . . . 1 . . . . . . . . . . . . . . . . . . . . . . . . . . . . Wasp 1 | . . . . . . . . . . . 1 . . . . . . . . . . . . . . . . . . . . . . . . . . . . . . Best Kill Streak 10 | 2 6 3 7 8 . 1 10 6 4 7 . 1 2 2 10 . . 2 4 1 7 . . 5 5 1 1 5 6 1 3 2 . . 6 10 3 2 7 5 1 Combat Bots Only 10 | . 4 3 5 4 . . 3 6 3 6 . . 2 2 10 . . 2 4 . 7 . . 2 3 . 1 2 5 1 3 2 . . 6 7 3 2 7 5 1 Max Kills in Single Turn 5 | 1 4 1 4 4 . 1 2 4 2 3 1 1 1 1 3 . . 1 5 1 2 . . 2 2 1 1 5 3 1 1 1 . . 2 5 1 1 2 5 1 Gunslinging 2 | . 1 . . . . . . . . . . . . . . . . . . . . . . . . . . . 2 . . . . . . . . . . . . Exploded 5 | . 2 . 3 3 . . 1 4 2 3 . . . . 3 . . 1 4 . 2 . . . 1 . . . 1 . 1 . . . 2 4 . . 2 5 . Melee 1 | . . . . . . . . 1 . . . . . . . . . . . . 1 . . . 1 . . . . . 1 1 . . . . . . . . 1 Uniques/NPCs Destroyed . | . . . . . . . . . . . . . . . . . . . . . . . . . . . . . . . . . . . . . . . . . . Combat | -11 -10 -10 -9 -9 -9 -8 -8 -8 -8 -7 -7 -7 -7 -7 -7 -6 -6 -6 -6 -6 -6 -5 -5 -5 -5 -5 -5 -5 -4 -4 -4 -4 -4 -3 -3 -2 -2 -2 -2 -1 -1 -------- Run | Yrd Mat Min Mat Min Exi Min Mat Gar Mat Fac Was Fac Gar Sto Gar Fac Was Fac Gar Fac Gar Fac Was Fac Ext Cet Arc Hub Fac Was Fac Arm Lab Res Gar Res Gar Res Gar Acc Com Hostile Shots Fired 3664 | . 57 28 106 9 . 1 82 118 20 49 . 4 17 4 543 . . 52 205 20 203 . . 29 245 6 17 169 258 . 221 176 . 6 125 312 76 20 128 79 279 Missed 988 | . 23 10 35 3 . 1 22 33 7 12 . 2 6 1 136 . . 14 75 6 65 . . 7 68 2 6 30 51 . 52 36 . 5 41 89 18 10 40 17 65 Intercepted 16 | . . . . . . . . . . . . . . . . . . . . . . . . . . . . . . . . . . . . . . . . . 16 Hits 2676 | . 34 18 71 6 . . 60 85 13 37 . 2 11 3 407 . . 38 130 14 138 . . 22 177 4 11 139 207 . 169 140 . 1 84 223 58 10 88 62 214 Melee 12 | . . . . . . . . . . . . . . . . . . . 1 . 1 . . . . . . . . . . 2 . . . . . . 3 1 4 Projectile 2664 | . 34 18 71 6 . . 60 85 13 37 . 2 11 3 407 . . 38 129 14 137 . . 22 177 4 11 139 207 . 169 138 . 1 84 223 58 10 85 61 210 AOE 31 | . . . . . . . . . . . . . . . . . . . . . . . . . . . . . . . . . . . . . . . 1 . 30 Critical Strikes 151 | . 1 . 3 . . . 5 9 2 4 . . . 1 5 . . 1 5 1 5 . . 3 6 4 . 7 13 . 9 7 . 1 8 16 3 2 9 2 19 Actively Blocked 31 | . . . . . . . . . . . . . . . . . . . . . . . . . . . . . . . . . . . . 10 . . 2 2 17 Part Disruptions 9 | . . . . . . . . 1 . . . . . . . . . . . . . . . 1 . . . 1 . . 2 . . . 1 . . . . 1 2 Damage Taken 46046 | . 375 142 908 50 . . 903 1061 196 639 . 47 199 63 3727 . . 476 1944 136 1890 . . 392 4054 144 321 3567 3257 . 3451 2174 . 96 1724 4017 991 174 1186 896 6846 Core 5505 | . 92 37 107 17 . . 102 100 13 73 . . 26 . 568 . . 16 368 16 345 . . . 392 . 24 234 235 . 188 115 . . 318 360 62 23 59 27 1588 Absorbed by Shields 8438 | . . . . . . . . 168 . . . 18 73 4 173 . . . 175 . 137 . . 51 163 40 6 309 1082 . . . . 16 316 1589 461 130 1126 860 1541 Reduced by Siege Mode 1074 | . . . . . . . . . . . . . . . 142 . . 17 . . . . . . . . . 96 158 . 22 143 . . . 297 11 . 44 . 144 Redirected to Shielding 44 | . . . . . . . . . . . . . . . . . . . . . . . . . . . . . . . . . . . . . . . . . 44 Ignored by Resistances 739 | . . . . . . . . . . . . . . . . . . . . . . . . . . . . . . . 247 424 . 14 . . . . . . 54 Regen/Repaired (Parts) 1396 | . . . 18 . . . . . . . 30 . 7 . . . . . . 18 . . 226 . 88 28 49 31 365 . . . . 245 . . 199 . . 92 . Core Remaining (%) 51 | 100 . 48 . . . 69 . . 60 . . . . . 4 . . . . . 12 . . . . . . 35 . . . . 53 . 75 . . . 60 . . Volleys Fired 1616 | 6 60 13 75 4 . . 63 73 28 67 8 2 21 17 88 . . 19 64 7 41 1 1 36 96 4 21 39 78 16 36 29 . 3 71 181 89 27 88 75 69 Largest 3 | 2 2 2 2 1 . . 1 1 1 2 1 1 1 1 3 . . 3 2 1 2 1 1 2 2 2 3 3 3 3 3 3 . 1 2 2 2 2 2 2 2 Hottest 320 | 60 100 66 66 33 . . 50 50 50 76 5 40 40 40 210 . . 240 188 5 188 69 7 159 159 150 235 320 188 98 101 136 . 7 130 214 240 240 240 240 240 Shots Fired 2368 | 12 111 26 100 4 . . 63 98 63 105 10 2 55 26 129 . . 40 75 7 51 1 1 48 111 6 49 86 200 35 62 56 . 3 76 184 97 38 139 122 77 Gun 818 | 12 30 . . . . . . 24 35 48 2 . 34 8 22 . . 32 44 . 30 1 . . 28 4 49 85 190 29 16 51 . . 21 23 . . . . . Cannon 1166 | . 72 26 90 . . . 58 72 22 53 . 2 20 15 93 . . . . . . . . 46 55 . . . 2 . 41 5 . . 22 107 69 34 115 107 40 Launcher 139 | . 6 . 10 4 . . 5 2 2 4 . . . . 8 . . 3 10 . 14 . . . 17 . . . . . 5 . . . 10 23 . . 8 3 5 Special 245 | . 3 . . . . . . . 4 . 8 . 1 3 6 . . 5 21 7 7 . 1 2 11 2 . 1 8 6 . . . 3 23 31 28 4 16 12 32 Kinetic 862 | 6 72 26 90 . . . 58 72 22 75 . 2 20 15 93 . . . 11 . . . . 21 37 . . . 127 29 57 8 . . 4 . . . . . 17 Thermal 1048 | 6 3 . . . . . . 24 35 26 2 . 34 8 19 . . 32 33 . 30 1 . 25 42 4 49 86 65 . . 48 . . 28 108 63 34 113 107 23 Explosive 126 | . 6 . 10 4 . . 5 2 2 4 . . . . 8 . . 3 10 . 14 . . . 4 . . . . . 5 . . . 10 23 . . 8 3 5 Electromagnetic 91 | . 30 . . . . . . . . . . . . . 3 . . . . . . . . . 17 . . . . . . . . . 11 22 6 . 2 . . Robot Hit Streak 23 | 2 14 3 9 10 . . 14 13 13 14 4 1 5 3 13 . . 8 10 3 11 . 1 10 10 10 6 12 23 7 14 12 . 2 17 18 14 6 17 14 9 Robot Miss Streak 8 | 2 4 5 3 . . . 3 4 2 5 1 1 6 2 8 . . 5 3 2 2 1 . 3 4 1 2 2 5 2 3 3 . 1 2 2 4 4 8 3 4 Penetration Max 2 | . . . 1 . . . 1 . . . . . . . . . . . . . . . . . . . . . 2 1 . . . . . . . . . . . Secondary Targets 15 | . 3 . . . . . . . . . . . . . . . . . . . . . . . . . . 3 6 1 . 2 . . . . . . . . . Max Gunslinging Chain 2 | . 1 . . . . . . . . . . . . . . . . . . . . . . . . . . 1 2 1 . 1 . . . . . . . . . Capacitor 62 | . . . . . . . . . . . . . . . . . . . . . . . . . . . . . . . . . . . . 61 1 . . . . Autonomous 133 | . . . . . . . . 24 35 27 2 . 35 9 1 . . . . . . . . . . . . . . . . . . . . . . . . . . Shots Hit Robots 1484 | 5 52 11 66 1 . 3 44 65 49 63 8 4 38 15 74 . . 33 45 6 34 . 1 28 82 6 32 47 135 26 54 46 . 2 46 117 47 12 78 58 51 Core Hits 803 | 4 29 6 46 8 . . 25 35 14 31 1 3 15 7 46 . . 29 41 1 35 . . 15 41 2 12 23 56 3 28 15 . . 20 87 17 6 35 36 31 Critical Kills 17 | . . . . . . . 1 . . . . . . . 4 . . . . . . . . 1 . . . . 3 . . . . . 2 3 2 . 1 . . Critical Parts Destroyed 19 | . . . . . . . 1 2 . . . . . . 6 . . 1 . . . . . . 3 . . . 4 . 1 1 . . . . . . . . . Critical Strikes 69 | . 1 . 4 . . . 7 8 . 1 . . . . 10 . . 1 . . . . . 3 7 1 . . 7 1 6 2 . . 2 3 2 . 1 . 2 Burn 2 | . . . . . . . . . . . . . . . . . . . . . . . . . 1 1 . . . . . . . . . . . . . . . Meltdown 9 | . . . . . . . . . . . . . . . . . . . . . . . . 1 . . . . . . . . . . 2 3 2 . 1 . . Destroy 20 | . . . . . . . . . . . . . . . 10 . . . . . . . . . . . . . 7 1 1 1 . . . . . . . . . Blast 23 | . 1 . 4 . . . 5 6 . 1 . . . . . . . . . . . . . 2 1 . . . . . 2 . . . . . . . . . 1 Smash 10 | . . . . . . . 2 2 . . . . . . . . . 1 . . . . . . 5 . . . . . . . . . . . . . . . . Sever 1 | . . . . . . . . . . . . . . . . . . . . . . . . . . . . . . . . . . . . . . . . . 1 Impale 4 | . . . . . . . . . . . . . . . . . . . . . . . . . . . . . . . 3 1 . . . . . . . . . Melee Attacks 367 | . . . 3 . . 3 10 28 . 3 . 6 29 7 31 . . 23 12 2 7 . . 6 32 1 . . 13 . 51 21 21 19 8 7 2 . . 4 18 Impact 116 | . . . 3 . . 3 10 28 . . . . . . . . . 23 12 . . . . . 28 1 . . 8 . . . . . . . . . . . . Slashing 130 | . . . . . . . . . . 3 . 6 29 7 31 . . . . 2 7 . . . . . . . . . . 2 21 6 . . . . . . 16 Piercing 121 | . . . . . . . . . . . . . . . . . . . . . . . . 6 4 . . . 5 . 51 19 . 13 8 7 2 . . 4 2 Sneak Attacks 43 | . . . 2 . . 3 3 2 . . . 2 . 2 . . . 2 . 2 1 . . 4 11 . . . . . 5 . . . . 1 . . . . 3 Combat Hostiles 3 | . . . . . . . . 2 . . . . . . . . . . . . 1 . . . . . . . . . . . . . . . . . . . . Follow-up Attacks 4 | . . . . . . . . . . . . . . . . . . . . . . . . . 3 . . . . . . . . . . . . . . . 1 Damage Inflicted 68812 | 64 1360 238 3472 366 . 303 2970 3323 1452 2640 59 222 1104 449 3001 . . 1339 2406 162 3043 . . 1303 3606 102 983 2128 3669 592 2887 1614 . . 2248 9107 2038 633 4475 3223 2231 Guns 14969 | 64 289 . . . . . . 582 923 921 59 . 805 184 324 . . 545 828 . 650 . . . 295 65 983 1546 3361 592 252 1296 . . 194 211 . . . . . Cannons 27313 | . 699 235 2228 . . . 2257 2155 397 796 . 37 273 156 1339 . . . . . . . . 1000 1090 . . . . . 729 55 . . 939 3870 2038 633 2930 2350 1107 Explosions 20620 | . 372 . 1113 366 . . 369 335 121 923 . . . . 1019 . . 481 1578 . 2315 . . . 1022 . . 526 265 . 826 . . . 1005 4936 . . 1545 873 630 Melee 5824 | . . . 131 . . 303 342 251 . . . 185 26 109 319 . . 313 . 162 78 . . 303 1198 37 . . 43 . 1067 263 . . 110 90 . . . . 494 Ramming 86 | . . 3 . . . . 2 . 11 . . . . . . . . . . . . . . . 1 . . 56 . . 13 . . . . . . . . . . Kinetic 16480 | 10 699 235 2228 . . . 2257 2155 397 1101 . 37 273 156 1339 . . . 250 . . . . 420 619 . . . 2097 592 981 81 . . . . . . . . 553 Thermal 25902 | 54 . . 254 . . . . 582 923 890 59 . 805 184 324 . . 545 578 . 650 . . 580 684 65 983 1546 1264 . . 1270 . . 1350 3870 1975 633 2930 2350 554 Explosive 18704 | . 372 . 859 366 . . 369 335 121 649 . . . . 1019 . . 481 1578 . 2315 . . . 464 . . . 265 . 818 . . . 709 4936 . . 1545 873 630 Electromagnetic 1816 | . 289 . . . . . . . . . . . . . . . . . . . . . . . 640 . . 526 . . 8 . . . 79 211 63 . . . . Impact 2480 | . . . 131 . . 303 342 251 . . . . . . . . . 313 . . . . . . 1060 37 . . 43 . . . . . . . . . . . . Slashing 1373 | . . . . . . . . . . . . 185 26 109 319 . . . . 162 78 . . . . . . . . . . . . . . . . . . . 494 Piercing 1971 | . . . . . . . . . . . . . . . . . . . . . . . . 303 138 . . . . . 1067 263 . . 110 90 . . . . . Highest Corruption 27 | . . 3 . . . . . 4 4 3 3 3 4 7 12 . . 2 3 3 7 . . 3 1 1 1 19 13 27 27 25 25 . 22 11 12 14 17 7 24 Average Corruption 8 | . . 3 . . . . . 3 4 1 3 3 3 4 10 . . 1 2 3 4 . . 2 1 1 1 9 5 23 10 17 25 . 21 4 11 12 15 4 17 Corruption Purged 31 | . . . . . . . . . . . . . . . . . . . . . . . . 3 . . 1 . . . 27 . . . . . . . . . . Corruption Blocked . | . . . . . . . . . . . . . . . . . . . . . . . . . . . . . . . . . . . . . . . . . . Effects 1060 | . . . . . . . . 30 28 7 16 16 40 32 93 . . 3 36 17 42 . . 7 26 4 4 4 53 18 72 52 40 . 79 42 95 26 91 18 69 Message Errors 262 | . . . . . . . . 5 6 2 2 6 6 8 25 . . 1 11 5 16 . . 2 5 2 . 2 14 6 15 13 9 . 21 8 21 2 27 6 16 Matter Fused 258 | . . . . . . . . 8 9 . 7 4 10 9 25 . . . 6 2 12 . . 1 8 . 2 . 13 4 22 15 8 . 17 12 24 5 19 2 14 Heat Flow Errors 142 | . . . . . . . . 6 2 1 . 2 5 3 17 . . . 7 3 4 . . 1 1 . . . 7 1 9 9 6 . 13 5 18 5 9 3 5 Energy Discharges 115 | . . . . . . . . 4 3 . 3 1 8 2 7 . . . 2 3 6 . . 1 2 1 . . 3 1 7 6 6 . 10 3 10 4 10 2 10 Parts Rejected 13 | . . . . . . . . . . . . . 1 . 2 . . . 2 . . . . . . . 1 2 . . 2 . . . 1 1 . . . . 1 Parts Fused 9 | . . . . . . . . . . . . . . 1 1 . . . 1 . . . . . 2 . . . 1 . . . 1 . . . . . . . 2 Data Loss (minor) 125 | . . . . . . . . 2 4 3 4 3 5 4 6 . . 1 3 . 1 . . 1 7 1 1 . 6 1 12 3 8 . 7 8 8 7 8 . 11 Data Loss (major) 45 | . . . . . . . . 3 2 1 . . 4 2 5 . . 1 2 1 2 . . . . . . . 1 1 . . 2 . 3 2 3 2 3 2 3 Misfires 36 | . . . . . . . . 1 1 . . . . 1 1 . . . 2 . . . . . . . . . 3 . 5 2 . . 4 2 6 . 5 2 1 Alerts 26 | . . . . . . . . 1 . . . . 1 2 2 . . . . 3 1 . . 1 1 . . . 2 . . . . . 2 1 4 1 2 . 2 Misdirections 12 | . . . . . . . . . . . . . . . . . . . . . . . . . . . . . . 3 . 2 . . 1 . 1 . 1 . 4 Weapon Failures 17 | . . . . . . . . . 1 . . . . . 2 . . . . . . . . . . . . . 3 1 . 2 . . . . . . 7 1 . Overload Shots 1 | . . . . . . . . . . . . . . . . . . . . . . . . . . . . 1 . . . . . . . . . . . . . Overflow Damage 4124 | . 59 . 276 17 . 203 312 345 50 57 . 43 72 15 168 . . 215 29 46 16 . . 92 537 . . 1 57 . 221 8 . . 170 539 98 43 138 147 150 Projectiles 1699 | . 22 . 128 . . . 203 199 48 10 . . 72 . 78 . . . . . . . . 23 49 . . . . . 22 1 . . 138 230 98 43 82 147 106 Explosions 791 | . 37 . 108 17 . . . . 2 47 . . . . 54 . . 29 29 . 16 . . . 52 . . 1 57 . 10 . . . 32 244 . . 56 . . Melee 1634 | . . . 40 . . 203 109 146 . . . 43 . 15 36 . . 186 . 46 . . . 69 436 . . . . . 189 7 . . . 65 . . . . 44 Knockbacks 91 | . 9 1 10 . . . 10 12 3 10 . . 5 1 5 . . 2 . . . . . . 12 . . . 1 . 4 3 . . . . . . . . 3 Impact 7 | . . . 1 . . . . . . . . . . . . . . 2 . . . . . . 3 . . . 1 . . . . . . . . . . . . Kinetic 78 | . 9 1 9 . . . 10 12 3 8 . . 5 1 4 . . . . . . . . . 7 . . . . . 4 2 . . . . . . . . 3 Secondary 6 | . . . . . . . . . . 2 . . . . 1 . . . . . . . . . 2 . . . . . . 1 . . . . . . . . . Self-Inflicted Damage 1109 | . 47 . . . . . . . . . . . . . . . . . 168 . 50 . . . 25 . . 109 100 . 14 . . . 81 213 . . . 85 217 Shots 24 | . 2 . . . . . . . . . . . . . . . . . 6 . 2 . . . 1 . . 1 1 . 1 . . . 1 4 . . . 1 4 Rammed 5 | . . . . . . . . . 2 . . . . . . . . . . . . . . . 1 . . 1 . . 1 . . . . . . . . . . Targets Rammed 7 | . . 1 . . . . 1 . 2 . . . . . . . . . . . . . . . 1 . . 1 . . 1 . . . . . . . . . . Kicked 1 | . . 1 . . . . . . . . . . . . . . . . . . . . . . . . . . . . . . . . . . . . . . . Crushed 1 | . . . . . . . 1 . . . . . . . . . . . . . . . . . . . . . . . . . . . . . . . . . . Highest Temperature 536 | 40 210 18 94 . . . 25 213 247 164 . 228 270 163 536 . . 260 413 268 315 . . 459 428 117 144 331 452 212 433 339 194 . 232 294 220 163 189 345 195 Average Temperature 84 | 16 44 9 22 . . . 10 36 58 29 . 99 96 60 132 . . 109 86 118 78 . . 98 96 61 48 96 178 73 85 116 69 . 95 87 85 57 80 89 100 Received Heat Transfer 7669 | . 84 6 456 . . . 567 235 117 126 . . 54 51 1253 . . . 321 42 411 . . . 960 . 45 767 394 . 617 54 . 5 50 279 200 12 28 16 519 Effects 21 | . . . . . . . . . . . . . . . 6 . . . 1 . . . . 4 1 . . . 1 . 4 1 . . 1 . . . . 2 . Shutdowns 10 | . . . . . . . . . . . . . . . 1 . . . 1 . . . . 2 1 . . . . . 2 1 . . . . . . . 2 . Energy Bleed 3 | . . . . . . . . . . . . . . . 2 . . . . . . . . . . . . . . . . . . . 1 . . . . . . Interference 4 | . . . . . . . . . . . . . . . 2 . . . . . . . . 2 . . . . . . . . . . . . . . . . . Matter Decay 2 | . . . . . . . . . . . . . . . . . . . . . . . . . . . . . . . 2 . . . . . . . . . . Short Circuit 1 | . . . . . . . . . . . . . . . 1 . . . . . . . . . . . . . . . . . . . . . . . . . . Damage (minor) 1 | . . . . . . . . . . . . . . . . . . . . . . . . . . . . . 1 . . . . . . . . . . . . Siege Activations 24 | . . . . . . . . . . . . . . . 1 . . 1 . . . . . . . . . 2 5 . 2 2 . . 1 2 1 . 6 . 1 Total Turns 436 | . . . . . . . . . . . . . . . 21 . . 14 . . . . . . . . . 69 103 . 28 50 . . 6 47 14 . 73 . 11 Longest Duration 50 | . . . . . . . . . . . . . . . 21 . . 14 . . . . . . . . . 50 38 . 18 36 . . 6 28 14 . 19 . 11 Martial Activations . | . . . . . . . . . . . . . . . . . . . . . . . . . . . . . . . . . . . . . . . . . . Shielding Activations . | . . . . . . . . . . . . . . . . . . . . . . . . . . . . . . . . . . . . . . . . . . Robots Disrupted 4 | . . . . . . . . . . . . . . . . . . . . . . . . . . . . . . . . . . . 1 3 . . . . . Combat Hostiles 4 | . . . . . . . . . . . . . . . . . . . . . . . . . . . . . . . . . . . 1 3 . . . . . Robots Corrupted 11 | . . . 1 . . . . . . . . . . . . . . 2 . . . . . . 7 . . . . . . . . . . 1 . . . . . Combat Hostiles 3 | . . . . . . . . . . . . . . . . . . . . . . . . . 2 . . . . . . . . . . 1 . . . . . Parts Fried 34 | . . . 1 . . 6 3 1 . . . . . . . . . 4 . . . . . . 15 . . 1 . . . . . . . 2 1 . . . . Impact Corruptions 37 | . . . 2 . . 7 4 5 . . . . . . . . . 5 . . . . . . 14 . . . . . . . . . . . . . . . . Robots Melted 13 | . . . . . . . . . . . . . . . . . . . . . 1 . . 1 . . . 1 . . . 2 . . 2 3 2 . 1 . . Combat Hostiles 13 | . . . . . . . . . . . . . . . . . . . . . 1 . . 1 . . . 1 . . . 2 . . 2 3 2 . 1 . . Parts Melted 73 | . . . . . . . . . 1 1 . . . . 4 . . 3 7 . 6 . . 6 . . 1 1 4 . . 6 . . 6 17 2 1 5 2 . Heat Transferred 25966 | 125 . . 150 . . . . 740 1137 903 74 . 999 222 781 . . 1200 912 . 584 . . 518 1012 185 1314 1427 1887 . . 1480 . . 977 2923 1572 462 2292 1905 185 Parts Sabotaged 13 | . . . . . . . . . . . . . . . . . . . . . 3 . . . . . . . . . . 4 . . . . . . . . 6 Parts Stolen . | . . . . . . . . . . . . . . . . . . . . . . . . . . . . . . . . . . . . . . . . . . Parts Stripped . | . . . . . . . . . . . . . . . . . . . . . . . . . . . . . . . . . . . . . . . . . . Power Chain Reactions 4 | . . . . . . . . . . . . . . . . . . . . . . . . . 1 . . 2 . . . . . . 1 . . . . . . Alert | -11 -10 -10 -9 -9 -9 -8 -8 -8 -8 -7 -7 -7 -7 -7 -7 -6 -6 -6 -6 -6 -6 -5 -5 -5 -5 -5 -5 -5 -4 -4 -4 -4 -4 -3 -3 -2 -2 -2 -2 -1 -1 ------- Run | Yrd Mat Min Mat Min Exi Min Mat Gar Mat Fac Was Fac Gar Sto Gar Fac Was Fac Gar Fac Gar Fac Was Fac Ext Cet Arc Hub Fac Was Fac Arm Lab Res Gar Res Gar Res Gar Acc Com Maximum Alert Level 5 | . 1 . 3 1 . . . 5 3 2 . 2 5 3 5 3 1 . 5 3 3 2 . 2 . . . 2 2 . 1 . . . 3 4 5 4 5 5 5 Low Security (%) 40 | 100 73 100 10 57 . 100 100 7 . 64 100 31 . . . . 17 100 3 . . . 100 84 100 100 100 80 44 100 71 100 . 100 9 13 . . . . . Level 1 11 | . 26 . 20 42 . . . 16 . 15 . 14 . . . . 82 . 25 19 19 7 . 7 . . . . 40 . 28 . . . 6 38 . . . . . Level 2 11 | . . . 67 . . . . 8 49 19 . 54 6 . 6 . . . 19 42 32 92 . 8 . . . 18 14 . . . . . 40 14 . . . . . Level 3 14 | . . . 1 . . . . 40 50 . . . 27 100 10 100 . . 24 37 47 . . . . . . . . . . . . . 42 21 6 40 21 . 37 Level 4 13 | . . . . . . . . 22 . . . . 41 . 55 . . . 25 . . . . . . . . . . . . . . . . 11 46 59 18 79 30 Level 5 7 | . . . . . . . . 4 . . . . 24 . 28 . . . 2 . . . . . . . . . . . . . . . . . 47 . 59 15 6 High Security . | . . . . . . . . . . . . . . . . . . . . . . . . . . . . . . . . . . . . . . . . 4 25 Max Security . | . . . . . . . . . . . . . . . . . . . . . . . . . . . . . . . . . . . . . . . . . . Peak Influence 2754 | 5 259 167 706 265 . 85 121 1600 854 419 137 693 1811 1073 2016 1058 342 167 1666 863 1016 533 134 465 146 153 88 476 497 155 375 177 . 30 988 1257 2333 1401 2754 1742 2144 Initial 1652 | . . 85 51 265 . . . 1 780 240 137 . 459 882 591 1058 342 113 112 863 236 533 134 . 70 50 16 . 196 155 14 177 . . . 555 926 1311 876 1652 1114 Average 578 | 1 95 63 478 189 . 23 57 821 673 154 20 374 1276 900 1390 1031 255 25 762 630 657 462 21 108 49 77 21 108 222 91 106 100 . . 648 538 1525 1120 1733 1336 1388 Influence Increases 30764 | 15 625 335 1164 137 . 143 368 1609 612 595 72 971 1432 888 1745 . . 320 1824 25 1000 10 . 1139 873 273 235 723 1300 6 668 393 . 64 1298 2202 1807 757 2028 1254 1854 Destroy 0b10 Robot/C 12595 | . 300 140 560 80 . 100 160 780 340 300 . 280 500 460 680 . . 120 740 . 460 . . 520 400 120 80 140 620 . 280 160 . . 420 940 640 320 860 570 525 Destroy 0b10 Robot/NC 773 | 15 55 . 65 20 . 15 65 . 25 35 . 30 . 10 10 . . 20 5 10 . . . 55 90 10 15 35 10 . 10 10 . . 5 90 5 30 . 16 12 Destroy Leader 1882 | . 80 20 176 10 . 20 50 30 74 74 . 82 30 120 60 . . 44 20 . 60 . . 84 34 . . 42 120 . 70 44 . . 50 184 30 50 70 80 74 Allied During Kill 3202 | . . 2 . . . 8 . 38 53 . . 316 168 149 19 . . 2 173 . 41 . . 377 36 130 49 24 35 . . . . . 90 70 328 171 450 182 291 Trap Triggered on 0b10 30 | . . . . . . . . . . . . . . . 30 . . . . . . . . . . . . . . . . . . . . . . . . . . Successful Hack 616 | . 7 . 71 . . . 8 14 17 46 . . 14 28 7 . . 14 . 15 28 10 . 18 50 9 . . 16 . 7 . . 6 13 33 10 . 12 85 78 Select Force Hacks 210 | . 60 . 30 . . . . . . . . . . . . . . . . . . . . . . . . . 60 . . . . 30 . 30 . . . . . Disable Machine 1611 | . 60 60 15 . . . 15 . 30 90 . 120 . 60 90 . . 60 15 . 15 . . 30 75 . 75 255 165 . 90 90 . . 15 30 30 15 15 36 60 Anti-Garrison Action 4325 | . . . . . . . . 550 . . . . 550 . 650 . . . 750 . 250 . . . . . . . . . . . . . 550 . 650 . 375 . . Destroy Structure 4236 | . 63 23 97 27 . . 40 152 43 50 72 143 95 31 109 . . 45 106 . 131 . . 40 128 4 16 212 154 6 136 14 . 28 155 765 69 171 216 237 658 Partial Spotted 60 | . . . . . . . . . . . . . . 15 . . . 15 . . . . . 15 15 . . . . . . . . . . . . . . . . Lose Combat Pursuer 1224 | . . 90 150 . . . 30 45 30 . . . 75 15 90 . . . 15 . 15 . . . 45 . . 15 120 . 75 75 . . . 60 45 . 30 48 156 Influence Decreases 28630 | 15 406 422 615 662 156 143 365 12 1684 729 466 315 277 1789 639 1038 816 321 339 1333 322 643 383 995 926 323 276 322 1258 428 326 702 54 64 310 1955 709 1922 442 2266 1462 Entered New Map 11574 | . . 134 81 416 156 . . 2 820 288 257 . 197 929 319 958 636 49 49 783 102 483 249 . 74 41 25 . 205 288 7 186 54 . . 433 309 1022 292 1102 628 Time Decay 9965 | 15 406 267 534 246 . 123 272 . 464 441 209 275 . 490 . 60 180 230 . 380 . 160 134 520 535 222 135 172 583 140 237 446 . 64 . 652 . 310 . 589 474 Lost Part 1451 | . . . . . . . 20 10 . . . . . . 200 . . 10 70 . 160 . . 10 129 . 20 90 80 . 82 70 . . 50 130 40 . 10 30 240 Lost Ally 3117 | . . 21 . . . 20 . . 100 . . 40 80 70 120 20 . 32 220 20 60 . . 190 188 60 96 60 90 . . . . . 260 440 360 140 140 170 120 Purge Threat 2523 | . . . . . . . 73 . 300 . . . . 300 . . . . . 150 . . . 275 . . . . 300 . . . . . . 300 . 450 . 375 . Squads Dispatched 129 | . 4 . 4 . . . 2 . 9 8 . 2 . 5 . . . 4 . . . . . 6 4 . . 4 12 . 7 4 . 4 . 15 . 3 . 11 21 Investigation 19 | . 3 . 2 . . . 1 . 3 1 . . . . . . . . . . . . . . 1 . . . 4 . . . . 3 . 1 . . . . . Extermination 39 | . . . . . . . . . . 4 . 1 . 1 . . . 3 . . . . . 5 . . . . 5 . 5 3 . . . 5 . 1 . 3 3 Reinforcement 39 | . 1 . 2 . . . 1 . 5 3 . 1 . 2 . . . 1 . . . . . 1 3 . . 4 . . 2 1 . 1 . 5 . . . 5 1 Assault 26 | . . . . . . . . . 1 . . . . 2 . . . . . . . . . . . . . . . . . . . . . 1 . 2 . 3 17 Garrison 6 | . . . . . . . . . . . . . . . . . . . . . . . . . . . . . 3 . . . . . . 3 . . . . . Intercept . | . . . . . . . . . . . . . . . . . . . . . . . . . . . . . . . . . . . . . . . . . . Searches Triggered . | . . . . . . . . . . . . . . . . . . . . . . . . . . . . . . . . . . . . . . . . . . Construction Impeded 12 | . . . 1 . . . 1 . 1 1 . 1 . . . . . . . . . . . . 2 . . 1 . . 1 . . . . 2 . . . 1 . Haulers Reinforced 7 | . . . . . . . . . . 1 . . . 1 . . . 1 . . . . . . . . . . . . . . . 1 . . . . . 3 . Active Scanning Responses . | . . . . . . . . . . . . . . . . . . . . . . . . . . . . . . . . . . . . . . . . . . Cargo Convoy Interrupts . | . . . . . . . . . . . . . . . . . . . . . . . . . . . . . . . . . . . . . . . . . . Stealth | -11 -10 -10 -9 -9 -9 -8 -8 -8 -8 -7 -7 -7 -7 -7 -7 -6 -6 -6 -6 -6 -6 -5 -5 -5 -5 -5 -5 -5 -4 -4 -4 -4 -4 -3 -3 -2 -2 -2 -2 -1 -1 --------- Run | Yrd Mat Min Mat Min Exi Min Mat Gar Mat Fac Was Fac Gar Sto Gar Fac Was Fac Gar Fac Gar Fac Was Fac Ext Cet Arc Hub Fac Was Fac Arm Lab Res Gar Res Gar Res Gar Acc Com Distress Signals 33 | . 2 . 3 . . . . . . . . . . 3 . . . 1 . . . . . 1 2 2 . 3 . . . . . 5 . 7 . 1 . 1 2 Communications Jammed 159 | . . . . . . . . . . . . . . 40 . . . . . . . . . . 35 . . 35 . . . . . . . . . 4 . 45 . Distress Signals 159 | . . . . . . . . . . . . . . 40 . . . . . . . . . . 35 . . 35 . . . . . . . . . 4 . 45 . Times Spotted 963 | . 24 12 50 4 . 3 15 37 23 15 6 6 28 23 39 2 . 11 50 3 32 1 2 20 45 9 18 23 51 6 25 17 . 8 28 89 53 14 54 51 66 Peak Tracking Total 15 | . 5 3 7 4 . 3 4 7 5 5 5 3 4 6 9 2 . 4 12 1 10 1 1 3 7 5 3 8 6 2 8 5 . 4 6 12 10 6 8 7 15 Tactical Retreats 61 | . . 4 10 . . . 2 2 2 . 1 . 5 1 3 . . . 1 . 1 . . . 3 . . 1 6 . 2 3 . . . 4 1 . 2 2 5 Traps | -11 -10 -10 -9 -9 -9 -8 -8 -8 -8 -7 -7 -7 -7 -7 -7 -6 -6 -6 -6 -6 -6 -5 -5 -5 -5 -5 -5 -5 -4 -4 -4 -4 -4 -3 -3 -2 -2 -2 -2 -1 -1 ------- Run | Yrd Mat Min Mat Min Exi Min Mat Gar Mat Fac Was Fac Gar Sto Gar Fac Was Fac Gar Fac Gar Fac Was Fac Ext Cet Arc Hub Fac Was Fac Arm Lab Res Gar Res Gar Res Gar Acc Com Traps Triggered 78 | . 2 . 1 . . . . . 2 3 . . 15 2 6 1 . . 5 . 5 1 . . . . . . 1 . 6 . . 1 7 1 8 . 6 3 2 Indirectly . | . . . . . . . . . . . . . . . . . . . . . . . . . . . . . . . . . . . . . . . . . . Trap Hack Attempts . | . . . . . . . . . . . . . . . . . . . . . . . . . . . . . . . . . . . . . . . . . . Triggered . | . . . . . . . . . . . . . . . . . . . . . . . . . . . . . . . . . . . . . . . . . . Disarmed . | . . . . . . . . . . . . . . . . . . . . . . . . . . . . . . . . . . . . . . . . . . Reprogrammed . | . . . . . . . . . . . . . . . . . . . . . . . . . . . . . . . . . . . . . . . . . . Reused 3 | . . . . . . . . . . . . . . . 3 . . . . . . . . . . . . . . . . . . . . . . . . . . Traps Extracted . | . . . . . . . . . . . . . . . . . . . . . . . . . . . . . . . . . . . . . . . . . . Installed 4 | . . . . . . . . . . . . . . . 4 . . . . . . . . . . . . . . . . . . . . . . . . . . Triggered 3 | . . . . . . . . . . . . . . . 3 . . . . . . . . . . . . . . . . . . . . . . . . . . Most Traps Carried 4 | . . . . . . . . . . . . . . . 4 . . . . . . . . . . . . . . . . . . . . . . . . . . Machines | -11 -10 -10 -9 -9 -9 -8 -8 -8 -8 -7 -7 -7 -7 -7 -7 -6 -6 -6 -6 -6 -6 -5 -5 -5 -5 -5 -5 -5 -4 -4 -4 -4 -4 -3 -3 -2 -2 -2 -2 -1 -1 ---------- Run | Yrd Mat Min Mat Min Exi Min Mat Gar Mat Fac Was Fac Gar Sto Gar Fac Was Fac Gar Fac Gar Fac Was Fac Ext Cet Arc Hub Fac Was Fac Arm Lab Res Gar Res Gar Res Gar Acc Com Machines Disabled 161 | . 4 4 1 . . . 1 7 2 6 . 8 5 4 9 . . 4 7 . 5 . . 2 6 . 5 17 11 . 7 6 4 . 11 2 7 1 7 3 5 Max in Single Turn 17 | . 4 4 1 . . . 1 1 1 5 . . 1 1 1 . . 2 1 . 1 . . 1 1 . 1 17 4 . 2 2 1 . 2 1 1 . 1 1 1 Garrison Access 3 | . . . . . . . . . . . . . . . . . . . . . . 1 . . . . . . . . . . . . . . . . . 2 . Garrison Relay 41 | . . . . . . . . 8 . . . . 5 . 3 . . . 5 . 3 . . . . . . . . . . . . . 8 . 5 . 4 . . Phase Generator 1 | . . . . . . . . . . . . . . . . . . . . . . . . . . . . . . . . . . . 1 . . . . . . Network Hub 1 | . . . . . . . . . . . . . . . . . . . . . . . . . . . . 1 . . . . . . . . . . . . . Energy Cycler 1 | . . . . . . . . . . . . . . . . . . . . . . . . . 1 . . . . . . . . . . . . . . . . Machines Repaired . | . . . . . . . . . . . . . . . . . . . . . . . . . . . . . . . . . . . . . . . . . . Machines Dismantled 1 | . . . . . . . . . . . . . . . . . . . . . . . . . . . . . . . . . . . . . . . . 1 . Machines Sabotaged . | . . . . . . . . . . . . . . . . . . . . . . . . . . . . . . . . . . . . . . . . . . Overloaded Fab Kills . | . . . . . . . . . . . . . . . . . . . . . . . . . . . . . . . . . . . . . . . . . . Hacking | -11 -10 -10 -9 -9 -9 -8 -8 -8 -8 -7 -7 -7 -7 -7 -7 -6 -6 -6 -6 -6 -6 -5 -5 -5 -5 -5 -5 -5 -4 -4 -4 -4 -4 -3 -3 -2 -2 -2 -2 -1 -1 --------- Run | Yrd Mat Min Mat Min Exi Min Mat Gar Mat Fac Was Fac Gar Sto Gar Fac Was Fac Gar Fac Gar Fac Was Fac Ext Cet Arc Hub Fac Was Fac Arm Lab Res Gar Res Gar Res Gar Acc Com Machines Accessed 138 | . 7 . 13 . 2 . 4 3 6 9 . 2 3 7 2 . . 4 . 6 2 3 . 8 6 1 . . 10 . 4 2 . 4 2 6 1 4 1 11 5 Terminals 100 | . 5 . 10 . . . 3 3 5 6 . 1 3 6 2 . . 2 . 3 2 2 . 8 6 1 . . 4 . 4 2 . . 2 3 1 2 1 8 5 Fabricators 6 | . . . . . . . . . . 2 . . . . . . . 1 . . . . . . . . . . 1 . . . . 1 . 1 . . . . . Repair Stations 3 | . . . 1 . . . . . . . . . . . . . . . . 1 . . . . . . . . 1 . . . . . . . . . . . . Recycling Units 9 | . 2 . 1 . . . . . 1 1 . . . . . . . . . . . . . . . . . . 2 . . . . 1 . . . 1 . . . Scanalyzers 2 | . . . 1 . . . . . . . . . . . . . . . . 1 . . . . . . . . . . . . . . . . . . . . . Garrison Access 16 | . . . . . . . 1 . . . . 1 . 1 . . . 1 . 1 . 1 . . . . . . 2 . . . . 2 . 2 . 1 . 3 . Total Hacks 368 | . 20 . 41 . 2 . 7 6 16 22 . 2 7 14 4 . . 8 . 19 2 7 . 22 19 1 . . 38 . 13 5 . 9 11 23 2 11 1 22 14 Successful 199 | . 13 . 24 . 2 . 3 2 10 12 . 1 1 7 1 . . 7 . 12 2 5 . 9 11 1 . . 17 . 5 1 . 8 2 13 1 10 1 12 6 Failed 169 | . 7 . 17 . . . 4 4 6 10 . 1 6 7 3 . . 1 . 7 . 2 . 13 8 . . . 21 . 8 4 . 1 9 10 1 1 . 10 8 Catastrophic 28 | . . . 3 . . . 2 . 2 . . 1 2 . . . . . . . . . . 2 1 . . . 5 . 2 2 . . . 1 . . . 4 1 Database Lockouts . | . . . . . . . . . . . . . . . . . . . . . . . . . . . . . . . . . . . . . . . . . . Manual 153 | . 18 . 24 . 1 . 6 . 11 13 . . . 3 . . . 4 . 7 . 3 . 11 7 . . . 10 . 3 . . 2 . 10 . . . 11 9 Terminals 295 | . 17 . 34 . . . 6 6 15 17 . 1 7 13 4 . . 5 . 12 2 5 . 22 19 1 . . 20 . 13 5 . . 11 17 2 8 1 18 14 Fabricators 12 | . . . . . . . . . . 4 . . . . . . . 2 . . . . . . . . . . 2 . . . . 2 . 2 . . . . . Repair Stations 12 | . . . 4 . . . . . . . . . . . . . . . . 2 . . . . . . . . 6 . . . . . . . . . . . . Recycling Units 16 | . 3 . 1 . . . . . 1 1 . . . . . . . . . . . . . . . . . . 6 . . . . 3 . . . 1 . . . Scanalyzers 6 | . . . 2 . . . . . . . . . . . . . . . . 4 . . . . . . . . . . . . . . . . . . . . . Garrison Access 25 | . . . . . . . 1 . . . . 1 . 1 . . . 1 . 1 . 2 . . . . . . 4 . . . . 4 . 4 . 2 . 4 . Terminal Hacks 84 | . 2 . 7 . 2 . 1 2 6 2 . . 1 5 1 . . 2 . 3 2 2 . 5 7 1 . . 3 . 4 1 . . 2 6 1 7 1 5 3 Record 5 | . . . . . 1 . . . . . . . . . . . . . . . . . . . 2 . . . . . . . . . . . . 2 . . . Part Schematic 1 | . . . . . . . . . . . . . . . . . . . . . . . . . . . . . . . . . . . . 1 . . . . . Robot Analysis 1 | . . . 1 . . . . . . . . . . . . . . . . . . . . . . . . . . . . . . . . . . . . . . Prototype ID Bank 5 | . . . 3 . . . . . . . . . . . . . . 1 . . . . . . . . . . . . 1 . . . . . . . . . . Open Door 9 | . . . . . . . . . . . . . . 1 1 . . . . . . . . 1 2 1 . . . . . . . . 1 . . . . 2 . Level Access Points 1 | . . . . . . . . . . . . . . . . . . . . . . . . . . . . . . . . . . . . . . 1 . . . Branch Access Points 6 | . . . 1 . . . . . 1 . . . . . . . . . . . . . . 1 . . . . . . 1 . . . . 1 . . . 1 . Emergency Access Points 6 | . . . . . . . . 1 . . . . 1 . . . . . . . 1 . . . . . . . . . 1 . . . 1 . . . . . 1 Machine Index 2 | . . . . . . . . . . . . . . . . . . . . . . . . . . . . . . . 1 . . . . . . 1 . . . Terminal Index 10 | . 1 . 1 . . . . . . 1 . . . 1 . . . . . 1 . 1 . 1 . . . . 1 . . . . . . 1 . . . . 1 Garrison Index 1 | . . . . . . . . . . . . . . . . . . . . . . . . . . . . . . . . . . . . 1 . . . . . Alert Level 2 | . . . . . . . . . 2 . . . . . . . . . . . . . . . . . . . . . . . . . . . . . . . . Unreport Threat 13 | . . . . . . . 1 . 2 . . . . 2 . . . . . 1 . . . . . . . . 2 . . . . . . 2 . 3 . . . Locate Traps 12 | . 1 . 1 . . . . . . 1 . . . 1 . . . 1 . 1 . . . 2 1 . . . . . . 1 . . . . . . . 1 1 Recall Extermination 1 | . . . . . . . . . . . . . . . . . . . . . . . . . . . . . . . . . . . . . . . . 1 . Hauler Manifests 1 | . . . . . . . . . . . . . . . . . . . . . . 1 . . . . . . . . . . . . . . . . . . . Zone Layout 3 | . . . . . . . . . 1 . . . . . . . . . . . . . . . 2 . . . . . . . . . . . . . . . . Garrison Registry 1 | . . . . . . . . . . . . . . . . . . . . . 1 . . . . . . . . . . . . . . . . . . . . Security Stations 3 | . . . . . . . . 1 . . . . . . . . . . . . . . . . . . . . . . . . . . . . 1 . 1 . . Proto ID Catalog 1 | . . . . . 1 . . . . . . . . . . . . . . . . . . . . . . . . . . . . . . . . . . . . Fabricator Hacks 6 | . . . . . . . . . . 2 . . . . . . . 1 . . . . . . . . . . 2 . . . . 1 . . . . . . . Network Status 5 | . . . . . . . . . . 2 . . . . . . . 1 . . . . . . . . . . 1 . . . . 1 . . . . . . . Build 1 | . . . . . . . . . . . . . . . . . . . . . . . . . . . . . 1 . . . . . . . . . . . . Repair Station Hacks 10 | . . . 4 . . . . . . . . . . . . . . . . 2 . . . . . . . . 4 . . . . . . . . . . . . Scan Component 5 | . . . 2 . . . . . . . . . . . . . . . . 1 . . . . . . . . 2 . . . . . . . . . . . . Repair 5 | . . . 2 . . . . . . . . . . . . . . . . 1 . . . . . . . . 2 . . . . . . . . . . . . Recycling Unit Hacks 8 | . 1 . . . . . . . 1 1 . . . . . . . . . . . . . . . . . . 2 . . . . 2 . . . 1 . . . Process 1 | . . . . . . . . . . . . . . . . . . . . . . . . . . . . . . . . . . 1 . . . . . . . Report Inventory 6 | . 1 . . . . . . . 1 1 . . . . . . . . . . . . . . . . . . 2 . . . . . . . . 1 . . . Retrieve Matter 1 | . . . . . . . . . . . . . . . . . . . . . . . . . . . . . . . . . . 1 . . . . . . . Scanalyzer 6 | . . . 2 . . . . . . . . . . . . . . . . 4 . . . . . . . . . . . . . . . . . . . . . Insert Component 3 | . . . 1 . . . . . . . . . . . . . . . . 2 . . . . . . . . . . . . . . . . . . . . . Analyze 3 | . . . 1 . . . . . . . . . . . . . . . . 2 . . . . . . . . . . . . . . . . . . . . . Garrison Access Hacks 21 | . . . . . . . 1 . . . . 1 . 1 . . . 1 . 1 . 2 . . . . . . 2 . . . . 3 . 3 . 2 . 4 . Unlock Access 8 | . . . . . . . 1 . . . . 1 . 1 . . . 1 . 1 . . . . . . . . . . . . . 1 . 1 . 1 . . . Seal Access 3 | . . . . . . . . . . . . . . . . . . . . . . 1 . . . . . . . . . . . . . . . . . 2 . Coupler Status 10 | . . . . . . . . . . . . . . . . . . . . . . 1 . . . . . . 2 . . . . 2 . 2 . 1 . 2 . Unauthorized Hacks 64 | . 10 . 11 . . . 1 . 3 7 . . . 1 . . . 3 . 2 . 1 . 4 4 . . . 4 . 1 . . 2 . 4 . . . 3 3 Terminals 53 | . 8 . 10 . . . 1 . 3 6 . . . 1 . . . 2 . 2 . 1 . 4 4 . . . 1 . 1 . . . . 3 . . . 3 3 Assimilate 2 | . . . . . . . . . 1 . . . . . . . . . . . . . . . . . . . . . . . . . . . . . . 1 . Botnet 40 | . 3 . 5 . . . 1 . 2 6 . . . 1 . . . 2 . 2 . 1 . 4 4 . . . 1 . 1 . . . . 2 . . . 2 3 Operators 1 | . . . . . . . . . . . . . . . . . . . . . . . . . . . . . . . . . . . . 1 . . . . . Skim 10 | . 5 . 5 . . . . . . . . . . . . . . . . . . . . . . . . . . . . . . . . . . . . . . Fabricators 3 | . . . . . . . . . . 1 . . . . . . . 1 . . . . . . . . . . . . . . . 1 . . . . . . . Liberate 3 | . . . . . . . . . . 1 . . . . . . . 1 . . . . . . . . . . . . . . . 1 . . . . . . . Repair Stations 1 | . . . . . . . . . . . . . . . . . . . . . . . . . . . . . 1 . . . . . . . . . . . . Patch 1 | . . . . . . . . . . . . . . . . . . . . . . . . . . . . . 1 . . . . . . . . . . . . Recycling Units 3 | . 2 . 1 . . . . . . . . . . . . . . . . . . . . . . . . . . . . . . . . . . . . . . Tunnel 3 | . 2 . 1 . . . . . . . . . . . . . . . . . . . . . . . . . . . . . . . . . . . . . . Scanalyzers . | . . . . . . . . . . . . . . . . . . . . . . . . . . . . . . . . . . . . . . . . . . Garrison Access 4 | . . . . . . . . . . . . . . . . . . . . . . . . . . . . . 2 . . . . 1 . 1 . . . . . Eject 4 | . . . . . . . . . . . . . . . . . . . . . . . . . . . . . 2 . . . . 1 . 1 . . . . . Data Cores Recovered 3 | . . . 1 . . . . . . . . . . . . . . . . . . . . 1 . . . 1 . . . . . . . . . . . . . Used . | . . . . . . . . . . . . . . . . . . . . . . . . . . . . . . . . . . . . . . . . . . Hacking Detections 112 | . 5 . 12 . . . 3 3 5 7 . 1 3 6 2 . . 3 . 5 2 2 . 8 5 . . . 8 . 3 2 . 4 2 5 1 3 . 7 5 Full Trace Events 6 | . . . . . . . 1 1 . . . . 2 . . . . . . . . . . . 1 . . . 1 . . . . . . . . . . . . Feedback Events 1 | . . . . . . . . . . . . . . . . . . . . . . . . . . . . . 1 . . . . . . . . . . . . Corruption 1 | . . . . . . . . . . . . . . . . . . . . . . . . . . . . . 1 . . . . . . . . . . . . Feedback Blocked . | . . . . . . . . . . . . . . . . . . . . . . . . . . . . . . . . . . . . . . . . . . Robot Schematics Acquired . | . . . . . . . . . . . . . . . . . . . . . . . . . . . . . . . . . . . . . . . . . . Robots Built . | . . . . . . . . . . . . . . . . . . . . . . . . . . . . . . . . . . . . . . . . . . Authchips . | . . . . . . . . . . . . . . . . . . . . . . . . . . . . . . . . . . . . . . . . . . Time . | . . . . . . . . . . . . . . . . . . . . . . . . . . . . . . . . . . . . . . . . . . Total Robot Build Rating . | . . . . . . . . . . . . . . . . . . . . . . . . . . . . . . . . . . . . . . . . . . Part Schematics Acquired 4 | . . . 1 . . . . . . . . . . . . . . . . 2 . . . . . . . . . . . . . . . 1 . . . . . Parts Built 2 | . . . . . . . . . . . . . . . . . . . . . . . . . . . . . 2 . . . . . . . . . . . . Authchips . | . . . . . . . . . . . . . . . . . . . . . . . . . . . . . . . . . . . . . . . . . . Time 139 | . . . . . . . . . . . . . . . . . . . . . . . . . . . . . 139 . . . . . . . . . . . . Total Part Build Rating 18 | . . . . . . . . . . . . . . . . . . . . . . . . . . . . . 18 . . . . . . . . . . . . Parts Repaired 5 | . . . 2 . . . . . . . . . . . . . . . . 1 . . . . . . . . 2 . . . . . . . . . . . . Time 256 | . . . 70 . . . . . . . . . . . . . . . . 44 . . . . . . . . 142 . . . . . . . . . . . . Parts Recycled . | . . . . . . . . . . . . . . . . . . . . . . . . . . . . . . . . . . . . . . . . . . Recycled Matter 27 | . . . . . . . . . . . . . . . . . . . . . . . . . . . . . . . . . . 27 . . . . . . . Retrieved Matter 27 | . . . . . . . . . . . . . . . . . . . . . . . . . . . . . . . . . . 27 . . . . . . . Retrieved Components . | . . . . . . . . . . . . . . . . . . . . . . . . . . . . . . . . . . . . . . . . . . Parts Scanalyzed 3 | . . . 1 . . . . . . . . . . . . . . . . 2 . . . . . . . . . . . . . . . . . . . . . Part Schematics Acquired 3 | . . . 1 . . . . . . . . . . . . . . . . 2 . . . . . . . . . . . . . . . . . . . . . Parts Damaged 1 | . . . 1 . . . . . . . . . . . . . . . . . . . . . . . . . . . . . . . . . . . . . . Bothacking | -11 -10 -10 -9 -9 -9 -8 -8 -8 -8 -7 -7 -7 -7 -7 -7 -6 -6 -6 -6 -6 -6 -5 -5 -5 -5 -5 -5 -5 -4 -4 -4 -4 -4 -3 -3 -2 -2 -2 -2 -1 -1 ------------ Run | Yrd Mat Min Mat Min Exi Min Mat Gar Mat Fac Was Fac Gar Sto Gar Fac Was Fac Gar Fac Gar Fac Was Fac Ext Cet Arc Hub Fac Was Fac Arm Lab Res Gar Res Gar Res Gar Acc Com Used RIF Installer 10 | . . . . . . . . 1 . . . . 1 . 2 . . . 1 . 1 . . . . . . . . . . . . . 2 . 1 . 1 . . Hotswap 1 | . . . . . . . . . . . . . . . . . . . . . 1 . . . . . . . . . . . . . . . . . . . . Command Fork 1 | . . . . . . . . . . . . . . . 1 . . . . . . . . . . . . . . . . . . . . . . . . . . Threat Obfuscator 1 | . . . . . . . . . . . . . . . . . . . . . . . . . . . . . . . . . . . . . . . 1 . . Signal Jammer 1 | . . . . . . . . . . . . . . . . . . . . . . . . . . . . . . . . . . . . . 1 . . . . Zone Cloak 2 | . . . . . . . . . . . . . 1 . . . . . . . . . . . . . . . . . . . . . 1 . . . . . . Watcher Feeds 1 | . . . . . . . . . . . . . . . 1 . . . . . . . . . . . . . . . . . . . . . . . . . . Patrol Navigation 1 | . . . . . . . . . . . . . . . . . . . . . . . . . . . . . . . . . . . 1 . . . . . . Structural Interface 1 | . . . . . . . . . . . . . . . . . . . 1 . . . . . . . . . . . . . . . . . . . . . . Robots Hacked 150 | . . . . . . . . . 4 . 6 . 1 3 4 . . 2 13 3 6 . 1 1 11 2 . . 7 5 . . . 1 12 19 20 3 13 6 7 Non-combat 8 | . . . . . . . . . . . . . . . . . . . . 1 . . . 1 . . . . . . . . . 1 . . 2 1 . 2 . Combat 142 | . . . . . . . . . 4 . 6 . 1 3 4 . . 2 13 2 6 . 1 . 11 2 . . 7 5 . . . . 12 19 18 2 13 4 7 Robot Hacks Applied 164 | . . . . . . . . . 4 . 8 . 1 3 5 . . 2 13 3 6 . 1 2 11 2 . . 7 5 . . . 2 13 19 21 4 14 8 10 parse_system 14 | . . . . . . . . . 1 . . . . . . . . . 1 1 . . . . 1 . . . . . . . . 1 1 1 1 1 2 . 3 purge_threat 5 | . . . . . . . . . . . . . . . . . . . . . . . . 2 . . . . . . . . . . . . . . . 3 . ignore_targets 14 | . . . . . . . . . . . 8 . . . . . . . . . . . 1 . . . . . . 5 . . . . . . . . . . . emergency_deploy 1 | . . . . . . . . . . . . . . . . . . . . . . . . . . . . . . . . . . . . . . . . 1 . find_shortcuts 1 | . . . . . . . . . . . . . . . 1 . . . . . . . . . . . . . . . . . . . . . . . . . . scatter_targeting 1 | . . . . . . . . . . . . . . . . . . . . . . . . . . . . . . . . . . . . . 1 . . . . spike_heat 4 | . . . . . . . . . . . . . . . . . . . 1 . 3 . . . . . . . . . . . . . . . . . . . . overload_power 9 | . . . . . . . . . 1 . . . . . 1 . . 1 1 1 . . . . 1 . . . 1 . . . . . . 2 . . . . . disable_weapons 4 | . . . . . . . . . . . . . 1 . . . . . 1 . . . . . . 1 . . . . . . . . . 1 . . . . . go_dormant 1 | . . . . . . . . . . . . . . . . . . . 1 . . . . . . . . . . . . . . . . . . . . . . overwrite_iff 17 | . . . . . . . . . . . . . . . . . . . 1 . . . . . 4 . . . 2 . . . . . . 5 3 1 . 1 . formatsys_low 4 | . . . . . . . . . . . . . . . . . . . . . . . . . . . . . . . . . . 1 . . 2 . . 1 . formatsys_high 89 | . . . . . . . . . 2 . . . . 3 3 . . 1 7 1 3 . . . 5 1 . . 4 . . . . . 12 10 14 2 12 2 7 Relay Couplers Released 195 | . . . . . . . . 33 . . . 3 23 . 12 . . . 22 . 12 . . . . . . . 10 . . . . 4 32 8 21 . 15 . . Ejected 15 | . . . . . . . . . . . . . . . . . . . . . . . . . . . . . 7 . . . . 4 . 4 . . . . . Machine Destruction 163 | . . . . . . . . 33 . . . . 19 . 12 . . . 19 . 12 . . . . . . . . . . . . . 32 . 21 . 15 . . Programmers 17 | . . . . . . . . . . . . 3 4 . . . . . 3 . . . . . . . . . 3 . . . . . . 4 . . . . . Attached 56 | . . . . . . . . . 1 . 1 . 1 2 2 . 1 1 8 1 2 1 . 1 3 1 1 . 3 . . . . . 6 6 5 1 4 1 3 Fabnet Peak Effective % . | . . . . . . . . . . . . . . . . . . . . . . . . . . . . . . . . . . . . . . . . . . Robots Rewired 32 | . . . . . . . . 3 . . . . . . 5 . . . 5 . 2 . . . 12 . . . . . . . . . 3 2 . . . . . Allies Hacked 14 | . . . . . . . . . . . . . 3 . . . . . . . . . . 1 . . . . 1 . . . . . 2 . . 3 . 2 2 Hacks Repelled . | . . . . . . . . . . . . . . . . . . . . . . . . . . . . . . . . . . . . . . . . . . Allies | -11 -10 -10 -9 -9 -9 -8 -8 -8 -8 -7 -7 -7 -7 -7 -7 -6 -6 -6 -6 -6 -6 -5 -5 -5 -5 -5 -5 -5 -4 -4 -4 -4 -4 -3 -3 -2 -2 -2 -2 -1 -1 -------- Run | Yrd Mat Min Mat Min Exi Min Mat Gar Mat Fac Was Fac Gar Sto Gar Fac Was Fac Gar Fac Gar Fac Was Fac Ext Cet Arc Hub Fac Was Fac Arm Lab Res Gar Res Gar Res Gar Acc Com Total Allies 221 | . . 2 . 3 . . . 3 2 . 18 . 2 3 8 . . 1 17 1 6 . 20 . 29 2 . . 8 . . . . 1 17 19 29 3 14 5 8 Largest Group 21 | . . 2 . 3 3 3 . 3 3 . 18 13 7 4 4 2 1 1 5 1 2 1 21 21 9 10 8 3 5 . . . . 1 5 3 9 9 9 7 4 Highest-Rated Group 763 | . . 44 . 40 40 40 . 101 101 . 444 357 203 190 94 56 25 25 325 32 264 32 763 763 259 395 322 141 235 . . . . 36 286 299 634 450 527 418 564 Highest-Rated Ally 216 | . . 31 . 16 16 16 . 39 39 . 35 35 80 80 62 31 25 25 119 32 148 32 46 46 159 82 82 82 58 . . . . 36 64 183 148 80 69 64 216 Total Orders 31 | . . . . . . . . . 2 . . . . . . . . . 7 . . . . . . . . . 4 . . . . 5 2 6 1 1 . 1 2 STAY 7 | . . . . . . . . . 1 . . . . . . . . . 3 . . . . . . . . . . . . . . . 1 . . 1 . . 1 FOLLOW 6 | . . . . . . . . . 1 . . . . . . . . . 4 . . . . . . . . . . . . . . . 1 . . . . . . AID 4 | . . . . . . . . . . . . . . . . . . . . . . . . . . . . . . . . . . 1 . . 1 . . 1 1 EXPLORE 13 | . . . . . . . . . . . . . . . . . . . . . . . . . . . . . 4 . . . . 4 . 5 . . . . . RETURN 1 | . . . . . . . . . . . . . . . . . . . . . . . . . . . . . . . . . . . . 1 . . . . . Ally Attacks 1815 | . . 8 . . . 31 . 7 60 . 122 103 131 66 47 . . 6 159 5 38 . 88 128 74 29 35 15 40 . . . . . 59 88 140 58 111 85 82 Total Damage 54332 | . . 165 . . . 244 . 123 959 . 3319 2074 2418 2215 729 . . 126 4190 118 1199 . 1836 2343 1576 871 673 432 1592 . . . . . 2021 3287 4937 2907 3485 3257 7236 Kills 303 | . . 1 . . . 5 . 3 11 . 10 18 19 21 5 . . 1 25 . 9 . 3 22 9 7 3 3 7 . . . . . 9 10 22 16 20 14 30 Allies Corrupted 26 | . . . . . . . . . . . . . . 1 1 . . . . . . . . 7 . . . . 3 . . . . . 1 3 . 2 . 3 5 Allies Melted 3 | . . . . . . . . . . . . . . . . . . . 1 . 1 . . . 1 . . . . . . . . . . . . . . . . Intel | -11 -10 -10 -9 -9 -9 -8 -8 -8 -8 -7 -7 -7 -7 -7 -7 -6 -6 -6 -6 -6 -6 -5 -5 -5 -5 -5 -5 -5 -4 -4 -4 -4 -4 -3 -3 -2 -2 -2 -2 -1 -1 ------- Run | Yrd Mat Min Mat Min Exi Min Mat Gar Mat Fac Was Fac Gar Sto Gar Fac Was Fac Gar Fac Gar Fac Was Fac Ext Cet Arc Hub Fac Was Fac Arm Lab Res Gar Res Gar Res Gar Acc Com Active Infowar (turns) 31423 | 33 1217 826 1138 520 372 400 168 . . . . 815 1969 709 954 13 2 549 1260 706 946 323 894 2464 2399 . . 305 1840 . 1441 1050 805 1217 1792 1983 273 469 4 1565 2 Optics 7354 | . . . . . . . . . . . . . . . . . . . . . 563 323 894 2464 1503 . . . 1607 . . . . . . . . . . . . Terrain 10100 | . . . . . . . . . . . . . . . . . . . . . . . . . . . . . . . 1437 1050 805 1156 1442 1913 257 469 4 1565 2 Structural 219 | . . . . . . . . . . . . . . . . . . . . . . . . . . . . . . . . . . . . 202 16 . . 1 . Seismic 4674 | 33 1217 826 1138 520 372 400 168 . . . . . . . . . . . . . . . . . . . . . . . . . . . . . . . . . . Jamming 16535 | . . . . . . . . . . . . 815 1969 709 954 13 2 549 1260 706 699 . . 1879 987 . . 305 863 . 306 658 . 1217 1792 852 . . . . . Robot Analysis Total 1 | . . . 1 . . . . . . . . . . . . . . . . . . . . . . . . . . . . . . . . . . . . . . Derelict Logs Recovered 1 | . . 1 . . . . . . . . . . . . . . . . . . . . . . . . . . . . . . . . . . . . . . . Drone Launches 13 | . . . . . . . . . . . . . . . . . . . . . . . . . . . . . 4 . . . . 4 . 5 . . . . . Drone Recoveries 6 | . . . . . . . . . . . . . . . . . . . . . . . . . . . . . . . . . . 3 . 3 . . . . . Exploration | -11 -10 -10 -9 -9 -9 -8 -8 -8 -8 -7 -7 -7 -7 -7 -7 -6 -6 -6 -6 -6 -6 -5 -5 -5 -5 -5 -5 -5 -4 -4 -4 -4 -4 -3 -3 -2 -2 -2 -2 -1 -1 ------------- Run | Yrd Mat Min Mat Min Exi Min Mat Gar Mat Fac Was Fac Gar Sto Gar Fac Was Fac Gar Fac Gar Fac Was Fac Ext Cet Arc Hub Fac Was Fac Arm Lab Res Gar Res Gar Res Gar Acc Com Turns Passed 55848 | 122 1217 826 1509 520 372 400 775 1905 1162 1757 1085 894 1969 1286 2548 122 364 1645 2487 895 1595 323 894 2464 3125 469 431 517 2462 290 2901 1106 830 1907 1792 2410 2292 680 1935 1939 1626 Spaces Moved 23760 | 61 583 395 739 315 229 245 335 916 643 801 411 345 658 469 972 72 202 738 912 432 739 168 272 884 1333 213 128 146 861 99 998 463 235 833 815 1019 974 288 771 1085 963 Core 197 | 6 . . . . . . . . . . . . . . . . . . . . 71 . . . 118 . . . . . . . . . . . . . . . 2 Treads 11022 | 55 4 1 739 315 229 245 335 916 643 801 411 345 658 469 634 . 32 60 . . . . 249 884 838 6 116 146 861 99 436 27 . . . . . . . . 468 Legs 2733 | . 579 394 . . . . . . . . . . . . . . . . 471 432 666 168 23 . . . . . . . . . . . . . . . . . . Wheels 9545 | . . . . . . . . . . . . . . . 338 72 170 678 441 . 2 . . . 377 207 12 . . . 562 436 235 833 815 1019 974 288 771 1085 230 Hover . | . . . . . . . . . . . . . . . . . . . . . . . . . . . . . . . . . . . . . . . . . . Flight 263 | . . . . . . . . . . . . . . . . . . . . . . . . . . . . . . . . . . . . . . . . . 263 Fastest Speed 37 | 50 120 160 160 160 160 160 145 145 155 160 240 240 240 240 130 160 160 160 160 180 50 190 152 152 50 185 185 160 160 240 129 150 150 170 150 150 150 190 190 130 37 Average Speed 184 | 149 152 189 160 160 160 160 154 158 155 191 240 240 240 240 208 160 172 166 226 180 162 190 230 231 182 186 234 238 204 240 194 174 161 183 169 168 180 190 190 141 134 Slowest Speed 560 | 160 190 190 160 160 160 160 240 225 160 240 240 240 240 240 240 160 240 240 265 180 190 190 305 232 560 240 240 240 240 240 240 250 170 190 170 190 190 190 190 190 465 Overloaded Moves . | . . . . . . . . . . . . . . . . . . . . . . . . . . . . . . . . . . . . . . . . . . Propulsion Burnouts . | . . . . . . . . . . . . . . . . . . . . . . . . . . . . . . . . . . . . . . . . . . Robots Hopped 2 | . . . . . . . . . . . . . . . . . . . . . . . . . . . . . . . . . . . . . . . . . 2 Potential Cave-ins 6 | . . . . . . . 2 . . . . . . . . . . . . . . . . . . . . . . . 2 . . . . 2 . . . . . Cave-ins Triggered . | . . . . . . . . . . . . . . . . . . . . . . . . . . . . . . . . . . . . . . . . . . Teleports 1 | . . . . . . . . . . . . . . . . . . . . . . . . . . . . . . . . . . . . 1 . . . . . Exploration Rate (%) 58 | 4 95 83 89 71 61 61 31 97 60 34 96 15 91 55 87 3 92 18 88 9 67 6 93 35 86 62 77 43 32 67 29 45 94 51 93 51 98 16 86 44 39 Regions Visited 41 Branch Regions 12 Pre-discovered Areas 10 | . 4 . 4 . 1 . . . . . . . . 1 . . . . . . . . . . . . . . . . . . . . . . . . . . . Known Exits Taken 14 | . . 1 1 . . 1 1 . . . . 1 . 1 . . . 1 . 1 . . . 1 . . . . . . 1 . . 1 . 1 . 1 . 1 . Unknown Exits Taken 11 | 1 1 . . 1 1 . . . 1 . . . . . . . . . . . . . . . 1 1 1 1 . . . 1 1 . . . . . . . . Scrap Searched 5 | . . 2 . . . 3 . . . . . . . . . . . . . . . . . . . . . . . . . . . . . . . . . . . Spaces Dug 233 | . 3 . 1 18 . . 11 3 . 5 . 2 6 . 9 . . 19 13 . 2 . . 12 1 . . 5 14 . 24 6 . 14 . 19 . 9 7 15 15 Terrain Destroyed 1809 | . 60 23 99 37 . . 43 35 30 49 . 2 10 7 82 . . 43 84 . 83 . . 19 86 . 3 165 63 3 77 9 . 14 114 316 11 20 78 91 53 Melee 112 | . . . 1 . . . 2 3 . 3 . 2 6 . 9 . . 19 3 . 2 . . 1 1 . . . 11 . 17 4 . 14 . 5 . . . 2 7 Projectile 362 | . 8 1 18 . . . 23 22 12 9 . . 4 7 13 . . . 5 . 2 . . 18 20 . 3 8 22 3 24 5 . . . 24 11 20 30 35 15 AOE 1335 | . 52 22 80 37 . . 18 10 18 37 . . . . 60 . . 24 76 . 79 . . . 65 . . 157 30 . 36 . . . 114 287 . . 48 54 31 Terrain Rammed . | . . . . . . . . . . . . . . . . . . . . . . . . . . . . . . . . . . . . . . . . . . Walls Destroyed . | . . . . . . . . . . . . . . . . . . . . . . . . . . . . . . . . . . . . . . . . . . Machines Disabled . | . . . . . . . . . . . . . . . . . . . . . . . . . . . . . . . . . . . . . . . . . . Actions | -11 -10 -10 -9 -9 -9 -8 -8 -8 -8 -7 -7 -7 -7 -7 -7 -6 -6 -6 -6 -6 -6 -5 -5 -5 -5 -5 -5 -5 -4 -4 -4 -4 -4 -3 -3 -2 -2 -2 -2 -1 -1 --------- Run | Yrd Mat Min Mat Min Exi Min Mat Gar Mat Fac Was Fac Gar Sto Gar Fac Was Fac Gar Fac Gar Fac Was Fac Ext Cet Arc Hub Fac Was Fac Arm Lab Res Gar Res Gar Res Gar Acc Com Total 33088 | 78 792 443 948 326 235 247 479 1209 779 946 510 400 983 600 1308 80 219 1070 1241 543 1066 172 541 1247 1860 280 215 239 1382 129 1805 662 648 1177 1164 1586 1427 381 1117 1351 1203 Wait 5045 | . 114 29 81 6 4 . 46 105 72 34 60 40 230 82 47 . 2 270 85 68 172 . 253 287 124 25 43 38 336 4 596 111 376 270 155 248 202 37 186 137 70 Move 23718 | 60 582 394 738 314 228 244 335 914 642 801 410 344 656 469 971 72 201 738 910 431 737 168 271 883 1332 212 127 146 861 98 997 462 234 833 813 1019 972 287 769 1084 959 Hop 2 | . . . . . . . . . . . . . . . . . . . . . . . . . . . . . . . . . . . . . . . . . 2 Pick Up 372 | 5 12 . 14 . 1 . 2 10 8 16 8 1 8 1 18 2 5 4 24 4 26 2 3 4 21 9 3 . 25 . 27 9 1 7 23 21 21 4 10 3 10 Fast Attach 337 | 7 7 1 5 . . . 3 2 5 3 4 2 1 5 13 2 2 . 22 12 10 . 6 7 37 4 6 1 19 3 25 8 7 17 8 23 20 5 2 8 25 Attach 181 | . . . 2 . 1 . 1 5 3 2 1 . 2 . 18 1 . 2 14 1 14 1 . 2 14 1 2 7 8 2 16 10 . . 4 16 8 . 4 2 17 Detach 56 | . 1 . . . . . . 3 1 1 2 . . 2 2 1 1 . 4 . 1 . 1 2 4 1 . . . 4 6 1 3 . 1 6 2 . 1 . 5 Swap 331 | . 6 3 8 2 . . 10 5 5 9 4 1 2 9 15 . 3 8 23 3 12 . . 7 7 9 5 7 18 1 10 5 6 7 15 41 22 12 11 14 6 Drop 456 | . 10 2 22 . 1 . 8 11 13 10 13 4 8 8 11 2 5 6 35 15 8 . 6 13 14 14 8 1 24 1 40 6 . 21 22 24 33 9 7 8 13 Fire 1616 | 6 60 13 75 4 . . 63 73 28 67 8 2 21 17 88 . . 19 64 7 41 1 1 36 96 4 21 39 78 16 36 29 . 3 71 181 89 27 88 75 69 Melee 359 | . . . 3 . . 3 10 28 . 3 . 6 29 7 31 . . 23 12 2 7 . . 6 25 1 . . 13 . 51 21 21 19 8 7 2 . . 4 17 Ram 1 | . . . . . . . . . . . . . . . . . . . . . . . . . . . . . . . 1 . . . . . . . . . . Kick 1 | . . 1 . . . . . . . . . . . . . . . . . . . . . . . . . . . . . . . . . . . . . . . Crush 4 | . . . . . . . 1 . 2 . . . . . . . . . . . . . . . 1 . . . . . . . . . . . . . . . . Escape Stasis 212 | . . . . . . . . . . . . . 26 . 6 . . . 10 . 25 . . . . . . . . . . . . . 40 . 56 . 39 . 10 Rewire 375 | . . . . . . . . 51 . . . . . . 84 . . . 38 . 13 . . . 185 . . . . . . . . . 4 . . . . . . Trap 4 | . . . . . . . . . . . . . . . 4 . . . . . . . . . . . . . . . . . . . . . . . . . . Miscellaneous 18 | . . . . . . . . 2 . . . . . . . . . . . . . . . . . . . . . . . . . . . . . . . 16 . Route ------- -11/Scrapyard -10/Materials (discovered 5 exits: *Mat x3 / [*Min] / Sub) -10/Mines (discovered 3 exits: *Mat x2 / Sub) -9/Materials (discovered 4 exits: *Mat x3 / *Min) -9/Mines (discovered 2 exits: *Mat / *Exi) -9/Exiles -8/Mines -8/Materials -8/Garrison (discovered 4 exits: *Mat x4) -8/Materials (discovered 2 exits: *Fac x2) -7/Factory (discovered 2 exits: *Fac / *Sto) -7/Waste -7/Factory (discovered 2 exits: *Fac / Gar) -7/Garrison (discovered 3 exits: *Sto x3) -7/Storage (discovered 3 exits: Fac / Rec / Gar) -7/Garrison (discovered 3 exits: *Fac x3) -6/Factory -6/Waste -6/Factory -6/Garrison (discovered 3 exits: *Fac x3) -6/Factory -6/Garrison (discovered 3 exits: *Fac x3) -5/Factory -5/Waste -5/Factory (discovered 4 exits: Upp x2 / *Ext x2) -5/Extension (discovered 2 exits: *Fac / *Cet) -5/Cetus (discovered 2 exits: *Fac / [*Arc]) -5/Archives (discovered 2 exits: [*Hub x2]) -5/Hub_04(d) -4/Factory (discovered 2 exits: *Res / *Upp) -4/Waste -4/Factory (discovered 5 exits: *Res x2 / *Upp x2 / *Arm) -4/Armory (discovered 2 exits: Res / [*Lab]) -4/Lab -3/Research (discovered 3 exits: *Res x2 / Gar) -3/Garrison (discovered 3 exits: *Res x3) -2/Research (discovered 5 exits: *Acc x2 / *Qua x2 / Gar) -2/Garrison (discovered 3 exits: *Res x3) -2/Research (discovered 4 exits: Acc x3 / Gar) -2/Garrison (discovered 3 exits: *Acc x3) -1/Access (discovered 2 exits: [Sur] / *Com) -1/Command History --------- Turn | Location | Event 8 | -11/Scrapyard | Discovered new exit (range 14) 123 | -11/Scrapyard | Entered Materials 305 | -10/Materials | Build established: Mutant 325 | -10/Materials | Discovered new exit (range 6) 411 | -10/Materials | Discovered new exit (range 5) 800 | -10/Materials | Discovered new exit (range 12) 878 | -10/Materials | Learned 4 Materials zone layouts 920 | -10/Materials | Identified exit to Materials 923 | -10/Materials | Learned location of 2 exits from Subcaves 924 | -10/Materials | Learned location of Mines (-10) 926 | -10/Materials | Loaded intel: 2 recycling unit locations 935 | -10/Materials | Learned location of Mines (-8) 955 | -10/Materials | Identified exit to Subcaves 1340 | -10/Materials | Entered Mines 1841 | -10/Mines | Learned location of 1 exit from Materials 2051 | -10/Mines | Core integrity fell below 50% 2166 | -10/Mines | Entered Materials 2166 | -9/Materials | Evolved 2 slots: Propulsion x1, Weapon x1 2167 | -9/Materials | Identified exit to Mines 2168 | -9/Materials | Identified exit to Materials 2514 | -9/Materials | Build established: Gunner 2643 | -9/Materials | Learned 4 Materials zone layouts 2656 | -9/Materials | Learned location of 1 exit from Storage 2658 | -9/Materials | Learned Storage emergency access door positions 2659 | -9/Materials | Learned location of Zion (-6) 2670 | -9/Materials | Learned location of Mines (-9) 2693 | -9/Materials | Learned location of 1 exit from Storage 2728 | -9/Materials | Learned location of 1 exit from Recycling 2917 | -9/Materials | Build established: Scavenger-Gunner 3120 | -9/Materials | Repaired Seismic Detector 3166 | -9/Materials | Repaired Broken Plasma Cutter 3675 | -9/Materials | Entered Mines 3680 | -9/Mines | Met a Derelict bent on vengeance 3783 | -9/Mines | A weapon hastily lodged in a ceiling crevice suddenly fell to the ground 3844 | -9/Mines | Build established: Scavenger-Mutant 4058 | -9/Mines | Assisted by bots powering up and referring to "LRC-V3" 4181 | -9/Mines | Deemed a non-threat by the Exiles lab entrance 4181 | -9/Mines | Discovered new exit (range 5) 4195 | -9/Mines | Entered Exiles 4195 | -9/Exiles | Accompanied by 3 allies 4235 | -9/Exiles | Met 8R-AWN 4263 | -9/Exiles | Met EX-HEX 4309 | -9/Exiles | Met EX-BIN 4328 | -9/Exiles | Aligned with FarCom system 4330 | -9/Exiles | Given EX-Vault access code 4367 | -9/Exiles | Opened EX-Vault 4378 | -9/Exiles | Found AWS/Thermal 4409 | -9/Exiles | Warned to stay clear of 0b10 Research branches 4456 | -9/Exiles | Met EX-DEC 4548 | -9/Exiles | Discovered new exit (range 10) 4567 | -9/Exiles | Left Exiles lab with AWS/Thermal 4567 | -9/Exiles | Entered Mines 4567 | -8/Mines | Accompanied by 3 allies 4941 | -8/Mines | Discovered exit to Materials (range 15) 4967 | -8/Mines | Entered Materials 4967 | -8/Materials | Evolved 2 slots: Utility x1, Weapon x1 5724 | -8/Materials | Build established: Mutant 5742 | -8/Materials | Identified exit to Garrison 5742 | -8/Materials | Entered Garrison 5765 | -8/Garrison | Garrison Relay disabled 5775 | -8/Garrison | Garrison Relay disabled 5862 | -8/Garrison | Garrison Relay disabled 5885 | -8/Garrison | Garrison Relay disabled 5994 | -8/Garrison | Triggered checkpoint 6023 | -8/Garrison | Discovered new exit (range 3) 6224 | -8/Garrison | Triggered checkpoint 6235 | -8/Garrison | Garrison Relay disabled 6247 | -8/Garrison | Learned Materials security intel 6522 | -8/Garrison | Discovered new exit (range 12) 6701 | -8/Garrison | Garrison Relay disabled 6820 | -8/Garrison | Triggered checkpoint 6990 | -8/Garrison | Installed Relay Interface Framework 7002 | -8/Garrison | Discovered new exit (range 13) 7114 | -8/Garrison | Triggered checkpoint 7172 | -8/Garrison | Garrison Relay disabled 7404 | -8/Garrison | Discovered new exit (range 15) 7447 | -8/Garrison | Build established: Scavenger-Tank 7492 | -8/Garrison | Triggered checkpoint 7522 | -8/Garrison | Garrison Relay disabled 7647 | -8/Garrison | Entered Materials 7647 | -8/Materials | Accompanied by 3 allies 7881 | -8/Materials | Discovered new exit (range 3) 8047 | -8/Materials | First assault squad dispatched 8337 | -8/Materials | Lost 3 allies 8526 | -8/Materials | Build established: Scavenger-Skirmisher 8667 | -8/Materials | Met 7R-MNS 8726 | -8/Materials | Discovered new exit (range 8) 8809 | -8/Materials | Entered Factory 8809 | -7/Factory | Evolved 2 slots: Utility x2 8810 | -7/Factory | Caught up to 7R-MNS 8810 | -7/Factory | Identified exit to Storage 9494 | -7/Factory | Build established: Tank 9675 | -7/Factory | Found Prototype Launcher 9878 | -7/Factory | Identified Rocket Array 10077 | -7/Factory | AWS/Thermal suddenly broke down 10152 | -7/Factory | Discovered new exit (range 11) 10405 | -7/Factory | Build established: Skirmisher 10566 | -7/Factory | Sucked down chute 10566 | -7/Factory | Entered Waste 10611 | -7/Waste | Spotted C-40 Crusher 10613 | -7/Waste | Spotted C-40 Crusher 10617 | -7/Waste | Spotted C-40 Crusher 10617 | -7/Waste | Found Prototype Launcher 10618 | -7/Waste | Spotted C-40 Crusher 10701 | -7/Waste | Spotted C-40 Crusher 10745 | -7/Waste | Identified Mni. Smartbomb Launcher 10855 | -7/Waste | Build established: Scavenger-Skirmisher 10939 | -7/Waste | Spotted C-40 Crusher 11076 | -7/Waste | Discovered new exit (range 16) 11177 | -7/Waste | Warlord forces began an assault 11200 | -7/Waste | Allies destroyed C-40 Crusher 11355 | -7/Waste | Allies destroyed C-40 Crusher 11385 | -7/Waste | Lost 4 allies 11401 | -7/Waste | Allies destroyed C-40 Crusher 11424 | -7/Waste | Allies destroyed C-40 Crusher 11473 | -7/Waste | Allies destroyed C-40 Crusher 11651 | -7/Waste | Entered Factory 11651 | -7/Factory | Accompanied by 13 allies 11699 | -7/Factory | Build established: Tank 12405 | -7/Factory | Discovered new exit (range 4) 12511 | -7/Factory | Identified exit to Garrison 12545 | -7/Factory | Entered Garrison 12545 | -7/Garrison | Accompanied by 7 allies 12641 | -7/Garrison | Triggered checkpoint 12677 | -7/Garrison | Garrison Relay disabled 12843 | -7/Garrison | Triggered checkpoint 12863 | -7/Garrison | Triggered checkpoint 12924 | -7/Garrison | Lost 3 allies 13015 | -7/Garrison | Triggered checkpoint 13056 | -7/Garrison | Discovered exit to Storage (range 11) 13184 | -7/Garrison | AWS/Thermal suddenly broke down 13265 | -7/Garrison | Triggered checkpoint 13278 | -7/Garrison | Garrison Relay disabled 13319 | -7/Garrison | Found embedded Infiltrators 13439 | -7/Garrison | Triggered checkpoint 13562 | -7/Garrison | Discovered exit to Storage (range 12) 13637 | -7/Garrison | Garrison Relay disabled 13711 | -7/Garrison | Garrison Relay disabled 13956 | -7/Garrison | Build established: Bothacker-Tank 14026 | -7/Garrison | Garrison Relay disabled 14047 | -7/Garrison | Triggered checkpoint 14098 | -7/Garrison | Expanded RIF knowledge: Zone Cloak 14132 | -7/Garrison | Discovered exit to Storage (range 3) 14514 | -7/Garrison | Entered Storage 14514 | -7/Storage | Accompanied by 3 allies 14515 | -7/Storage | Identified exit to Recycling 14515 | -7/Storage | Identified exit to Factory 15033 | -7/Storage | Learned location of Armory (-4) 15314 | -7/Storage | First assault squad dispatched 15349 | -7/Storage | AWS/Thermal suddenly broke down 15796 | -7/Storage | Identified exit to Garrison 15800 | -7/Storage | Entered Garrison 15800 | -7/Garrison | Accompanied by 1 ally 15906 | -7/Garrison | Garrison Relay disabled 15928 | -7/Garrison | Triggered checkpoint 15929 | -7/Garrison | AWS/Thermal suddenly broke down 15999 | -7/Garrison | Expanded RIF knowledge: Watcher Feeds 16104 | -7/Garrison | Triggered checkpoint 16214 | -7/Garrison | Triggered checkpoint 16216 | -7/Garrison | Triggered checkpoint 16247 | -7/Garrison | Destroyed 10 combat bots 16454 | -7/Garrison | Build established: Tank 16491 | -7/Garrison | Lost 3 parts (1p2u) 16500 | -7/Garrison | Expanded RIF knowledge: Command Fork 16665 | -7/Garrison | System corruption reached 10% 16837 | -7/Garrison | Discovered exit to Factory (range 3) 16864 | -7/Garrison | Triggered checkpoint 16958 | -7/Garrison | Build established: Mutant 17050 | -7/Garrison | Triggered checkpoint 17092 | -7/Garrison | Lost 4 allies 17109 | -7/Garrison | Garrison Relay disabled 17380 | -7/Garrison | Build established: Scavenger-Tank 17413 | -7/Garrison | Discovered exit to Factory (range 14) 17680 | -7/Garrison | Triggered checkpoint 17734 | -7/Garrison | Core integrity fell below 50% 17754 | -7/Garrison | Core integrity fell below 20% 17784 | -7/Garrison | Lost 13 parts (2p2n4u5w) 18007 | -7/Garrison | Garrison Relay disabled 18301 | -7/Garrison | Discovered exit to Factory (range 10) 18323 | -7/Garrison | Build established: Bothacker-Tank 18348 | -7/Garrison | Entered Factory 18348 | -6/Factory | Accompanied by 2 allies 18348 | -6/Factory | Evolved 2 slots: Propulsion x1, Utility x1 18470 | -6/Factory | Sucked down chute 18470 | -6/Factory | Entered Waste 18470 | -6/Waste | The area was eerily silent 18480 | -6/Waste | 1 allies followed down the chute 18799 | -6/Waste | Discovered new exit (range 13) 18834 | -6/Waste | Entered Factory 18834 | -6/Factory | Accompanied by 1 ally 20479 | -6/Factory | Identified exit to Garrison 20479 | -6/Factory | Entered Garrison 20504 | -6/Garrison | Spotted B-75 Beast 20548 | -6/Garrison | Destroyed B-75 Beast 20579 | -6/Garrison | Lost 7 parts (2n3u2w) 20631 | -6/Garrison | Triggered checkpoint 20718 | -6/Garrison | Garrison Relay disabled 21046 | -6/Garrison | Expanded RIF knowledge: Structural Interface 21173 | -6/Garrison | Triggered checkpoint 21178 | -6/Garrison | Triggered checkpoint 21209 | -6/Garrison | Triggered checkpoint 21243 | -6/Garrison | Lost 3 allies 21337 | -6/Garrison | Triggered checkpoint 21494 | -6/Garrison | Garrison Relay disabled 21585 | -6/Garrison | Triggered checkpoint 21710 | -6/Garrison | Discovered new exit (range 14) 21890 | -6/Garrison | Spotted B-75 Beast 21949 | -6/Garrison | Triggered checkpoint 22140 | -6/Garrison | Garrison Relay disabled 22201 | -6/Garrison | Garrison Relay disabled 22247 | -6/Garrison | Triggered checkpoint 22391 | -6/Garrison | Rewired Executioner 22398 | -6/Garrison | Rewired Executioner 22477 | -6/Garrison | Discovered new exit (range 7) 22565 | -6/Garrison | Spotted B-75 Beast 22593 | -6/Garrison | Allies destroyed B-75 Beast 22599 | -6/Garrison | Build established: Botlord-Tank 22606 | -6/Garrison | Allies destroyed B-75 Beast 22815 | -6/Garrison | Discovered new exit (range 15) 22869 | -6/Garrison | Lost 3 allies 22877 | -6/Garrison | Triggered checkpoint 22901 | -6/Garrison | Garrison Relay disabled 22966 | -6/Garrison | Entered Factory 23391 | -6/Factory | Build established: Botlord-Skirmisher 23586 | -6/Factory | Repaired Transmission Jammer 23728 | -6/Factory | Build established: Bothacker-Skirmisher 23845 | -6/Factory | Identified exit to Garrison 23861 | -6/Factory | Entered Garrison 23888 | -6/Garrison | Expanded RIF knowledge: Hotswap 24001 | -6/Garrison | Triggered checkpoint 24100 | -6/Garrison | Garrison Relay disabled 24178 | -6/Garrison | Spotted B-75 Beast 24186 | -6/Garrison | Destroyed B-75 Beast 24187 | -6/Garrison | Core integrity fell below 50% 24196 | -6/Garrison | P-60 Hacker assimilated allied Soldier 5j 24242 | -6/Garrison | Lost 3 parts (2u1w) 24251 | -6/Garrison | Destroyed 7 combat bots 24362 | -6/Garrison | Found Relay Coupler [Proto] 24365 | -6/Garrison | Found Relay Coupler [Proto] 24403 | -6/Garrison | Build established: Botlord-Tank 24445 | -6/Garrison | Spotted B-75 Beast 24612 | -6/Garrison | Spotted B-75 Beast 24655 | -6/Garrison | Triggered checkpoint 24655 | -6/Garrison | Triggered checkpoint 24662 | -6/Garrison | P-60 Hacker assimilated allied Guardian 5c 24679 | -6/Garrison | Triggered checkpoint 24692 | -6/Garrison | Rewired B-90 Cyclops 24694 | -6/Garrison | Core integrity fell below 20% 24709 | -6/Garrison | Rewired B-86 Titan 24723 | -6/Garrison | Allies destroyed B-75 Beast 24724 | -6/Garrison | Lost 12 parts (1p4n3u4w) 25168 | -6/Garrison | Build established: Botlord-Skirmisher 25186 | -6/Garrison | Discovered new exit (range 5) 25223 | -6/Garrison | Triggered checkpoint 25252 | -6/Garrison | Garrison Relay disabled 25295 | -6/Garrison | Discovered new exit (range 28) 25295 | -6/Garrison | Discovered new exit (range 57) 25295 | -6/Garrison | Discovered new exit (range 23) 25353 | -6/Garrison | Triggered checkpoint 25379 | -6/Garrison | Triggered checkpoint 25403 | -6/Garrison | Garrison Relay disabled 25456 | -6/Garrison | Entered Factory 25456 | -5/Factory | Accompanied by 1 ally 25456 | -5/Factory | Evolved 2 slots: Power x1, Utility x1 25779 | -5/Factory | Sucked down chute 25779 | -5/Factory | Entered Waste 25780 | -5/Waste | Joined by Warlord forces that had cleared the area 25789 | -5/Waste | 2 allies followed down the chute 25959 | -5/Waste | A Compactor rumbled back to life 25968 | -5/Waste | Spotted C-40 Crusher 26039 | -5/Waste | A Compactor rumbled back to life 26039 | -5/Waste | Spotted C-40 Crusher 26040 | -5/Waste | Allies destroyed C-40 Crusher 26160 | -5/Waste | Build established: Botlord-Tank 26178 | -5/Waste | Discovered new exit (range 11) 26191 | -5/Waste | Found Unknown Protection 26191 | -5/Waste | Identified Adv. Powered Armor 26329 | -5/Waste | A Compactor rumbled back to life 26329 | -5/Waste | Spotted C-40 Crusher 26331 | -5/Waste | Allies destroyed C-40 Crusher 26673 | -5/Waste | Entered Factory 26673 | -5/Factory | Accompanied by 21 allies 27104 | -5/Factory | Lost 4 allies 27310 | -5/Factory | Lost 11 allies 28862 | -5/Factory | Identified exit to Upper Caves 28862 | -5/Factory | Identified exit to Extension 29137 | -5/Factory | Entered Extension 29458 | -5/Extension | Lost 5 allies 29805 | -5/Extension | Rescued a captive Derelict 30128 | -5/Extension | Lost 4 allies 30401 | -5/Extension | Build established: Botlord-Skirmisher 30564 | -5/Extension | Spotted B-75 Beast 30566 | -5/Extension | Spotted B-75 Beast 30624 | -5/Extension | Destroyed B-75 Beast 30627 | -5/Extension | Lost 4 allies 30640 | -5/Extension | Released all parts (8) 30673 | -5/Extension | Lost 17 parts (4p3n4u6w) 30923 | -5/Extension | Rescued A7 31087 | -5/Extension | Disrupted transfer network 31203 | -5/Extension | Build established: Bothacker-Mutant 31400 | -5/Extension | Destroyed B-75 Beast 31426 | -5/Extension | Lost 3 parts (2n1u) 31435 | -5/Extension | Found Prototype Protection 31435 | -5/Extension | Identified Med. Regenerative Plating 31442 | -5/Extension | Extracted ID and sensor layout for unrecognized location from A7's data core 31601 | -5/Extension | Energy Cycler disabled 31601 | -5/Extension | Rescued a captive Derelict 31602 | -5/Extension | Rescued a captive Derelict 31602 | -5/Extension | Rescued a captive Derelict 31604 | -5/Extension | Rescued a captive Derelict 31606 | -5/Extension | Rescued a captive Derelict 31609 | -5/Extension | Rescued a captive Derelict 31707 | -5/Extension | Build established: Botlord-Mutant 32118 | -5/Extension | Build established: Scavenger-Tank 32215 | -5/Extension | Discovered new exit (range 10) 32217 | -5/Extension | Discovered new exit (range 6) 32262 | -5/Extension | Entered Cetus 32262 | -5/Cetus | Accompanied by 9 allies 32288 | -5/Cetus | Spotted Cetus Guard 32288 | -5/Cetus | Spotted Cetus Guard 32291 | -5/Cetus | Spotted Cetus Guard 32291 | -5/Cetus | Spotted Cetus Guard 32292 | -5/Cetus | Assimilated Cetus Guard with formatsys_high 32292 | -5/Cetus | Assimilated Cetus Guard with formatsys_high 32297 | -5/Cetus | Allies destroyed Cetus Guard 32298 | -5/Cetus | Allies destroyed Cetus Guard 32428 | -5/Cetus | Discovered new exit (range 16) 32471 | -5/Cetus | Spotted Cetus Guard 32472 | -5/Cetus | Spotted Cetus Guard 32476 | -5/Cetus | Spotted Cetus Guard 32476 | -5/Cetus | Spotted Cetus Guard 32478 | -5/Cetus | Allies destroyed Cetus Guard 32482 | -5/Cetus | Allies destroyed Cetus Guard 32492 | -5/Cetus | Allies destroyed Cetus Guard 32493 | -5/Cetus | Allies destroyed Cetus Guard 32505 | -5/Cetus | Discovered new exit (range 16) 32514 | -5/Cetus | Met Revision 17 32731 | -5/Cetus | Entered Archives 32731 | -5/Archives | Accompanied by 8 allies 32793 | -5/Archives | Discovered new exit (range 16) 32796 | -5/Archives | Lost 5 allies 32952 | -5/Archives | Discovered new exit (range 16) 33162 | -5/Archives | Entered Hub_04(d) 33162 | -5/Hub_04(d) | Accompanied by 3 allies 33264 | -5/Hub_04(d) | Lost 3 allies 33547 | -5/Hub_04(d) | Discovered new exit (range 29) 33578 | -5/Hub_04(d) | Network Hub disabled 33583 | -5/Hub_04(d) | Spotted Lightning 33585 | -5/Hub_04(d) | Spotted Lightning 33589 | -5/Hub_04(d) | Core integrity fell below 50% 33600 | -5/Hub_04(d) | Spotted Lightning 33637 | -5/Hub_04(d) | System corruption reached 10% 33679 | -5/Hub_04(d) | Entered Factory 33679 | -4/Factory | Evolved 2 slots: Power x1, Utility x1 33706 | -4/Factory | Lost 9 parts (2n4u3w) 34224 | -4/Factory | Build established: Botlord-Tank 34312 | -4/Factory | Discovered new exit (range 68) 34442 | -4/Factory | Repaired Quantum Reactor 34512 | -4/Factory | Repaired Particle Reactor 35008 | -4/Factory | Garrison activated, responded to threat 35047 | -4/Factory | Build established: Bothacker-Tank 35360 | -4/Factory | Build established: Botlord-Tank 35779 | -4/Factory | Discovered new exit (range 8) 35799 | -4/Factory | Found Prototype Hackware 35799 | -4/Factory | Identified Exp. System Shield 36087 | -4/Factory | System corruption reached 10% 36099 | -4/Factory | Fabricated Quantum Reactor? 36141 | -4/Factory | Sucked down chute 36141 | -4/Factory | Entered Waste 36156 | -4/Waste | EMP discharged 36171 | -4/Waste | Lost 5 parts (1p1n3u) 36180 | -4/Waste | Spotted C-40 Crusher 36196 | -4/Waste | Spotted C-40 Crusher 36215 | -4/Waste | Spotted C-40 Crusher 36245 | -4/Waste | Spotted C-40 Crusher 36255 | -4/Waste | Destroyed C-40 Crusher 36256 | -4/Waste | EMP discharged 36261 | -4/Waste | Spotted C-40 Crusher 36262 | -4/Waste | Found Damper Plating 36267 | -4/Waste | Spotted C-40 Crusher 36356 | -4/Waste | EMP discharged 36374 | -4/Waste | Discovered new exit (range 16) 36431 | -4/Waste | Entered Factory 37361 | -4/Factory | Identified exit to Upper Caves 37361 | -4/Factory | Identified exit to Armory 37943 | -4/Factory | Build established: Botlord-Assassin 37944 | -4/Factory | Discovered new exit (range 11) 38073 | -4/Factory | Lost 3 parts (2p1w) 38617 | -4/Factory | Spotted B-86 Titan 38682 | -4/Factory | Discovered new exit (range 3) 39274 | -4/Factory | Build established: Bothacker-Assassin 39332 | -4/Factory | Entered Armory 40162 | -4/Armory | Lost 6 parts (2p1n2u1w) 40329 | -4/Armory | Discovered new exit (range 14) 40432 | -4/Armory | Discovered new exit (range 4) 40438 | -4/Armory | Entered Lab 40439 | -4/Lab | Discovered new exit (range 9) 40456 | -4/Lab | Hidden lab's door opened automatically 40456 | -4/Lab | Sensor layout match revealed 40457 | -4/Lab | Gained access to the hidden lab's interior 40576 | -4/Lab | Found Alien Artifact 40576 | -4/Lab | Identified Core Expander 40576 | -4/Lab | Installed Core Expander, added new Utility slot 40643 | -4/Lab | Found Alien Artifact 40643 | -4/Lab | Identified Integrated Dissipator 40643 | -4/Lab | Installed Integrated Dissipator, increased core heat dissipation (+20) 40670 | -4/Lab | Found Alien Artifact 40721 | -4/Lab | Build established: Bothacker-Mutant 40937 | -4/Lab | Found Prototype Hackware 40937 | -4/Lab | Identified Deep Network Scanner 40941 | -4/Lab | Found Prototype Device 40941 | -4/Lab | Identified AEGIS Remote Shield 40946 | -4/Lab | Found Prototype Energy Cannon 40946 | -4/Lab | Identified Warp Cannon 40954 | -4/Lab | Found Prototype Energy Gun 40954 | -4/Lab | Identified Tachyon Dispersion Ray 41172 | -4/Lab | Found Prototype Special Weapon 41172 | -4/Lab | Identified Gui. Remote Datajack 41268 | -4/Lab | Entered Research 41268 | -3/Research | Evolved 2 slots: Utility x2 41477 | -3/Research | Build established: Bothacker-Tank 41499 | -3/Research | Revision forces began assault on 0b10 41505 | -3/Research | Met up with Revision 17++ 41743 | -3/Research | Discovered new exit (range 14) 41950 | -3/Research | Lost 3 allies 41999 | -3/Research | Research terminal network offline 42330 | -3/Research | Build established: Botlord-Assassin 42649 | -3/Research | Discovered new exit (range 92) 43175 | -3/Research | Identified exit to Garrison 43175 | -3/Research | Entered Garrison 43233 | -3/Garrison | Garrison Relay disabled 43265 | -3/Garrison | Triggered checkpoint 43301 | -3/Garrison | Expanded RIF knowledge: Zone Cloak 43314 | -3/Garrison | Phase Generator disabled 43343 | -3/Garrison | P-80 Master assimilated allied Veteran 8a 43363 | -3/Garrison | System corruption reached 10% 43405 | -3/Garrison | Lost 5 parts (2p1u2w) 43466 | -3/Garrison | Garrison Relay disabled 43468 | -3/Garrison | Garrison Relay disabled 43470 | -3/Garrison | Garrison Relay disabled 43482 | -3/Garrison | Garrison Relay disabled 43683 | -3/Garrison | Triggered checkpoint 43691 | -3/Garrison | Triggered checkpoint 43797 | -3/Garrison | Discovered new exit (range 20) 43857 | -3/Garrison | Triggered checkpoint 43879 | -3/Garrison | Garrison Relay disabled 44085 | -3/Garrison | Lost 3 allies 44097 | -3/Garrison | Triggered checkpoint 44113 | -3/Garrison | Discovered new exit (range 20) 44185 | -3/Garrison | Triggered checkpoint 44197 | -3/Garrison | Garrison Relay disabled 44266 | -3/Garrison | Lost 3 allies 44587 | -3/Garrison | Discovered new exit (range 12) 44637 | -3/Garrison | Triggered checkpoint 44675 | -3/Garrison | Expanded RIF knowledge: Patrol Navigation 44803 | -3/Garrison | Garrison Relay disabled 44967 | -3/Garrison | Entered Research 44967 | -2/Research | Accompanied by 3 allies 44967 | -2/Research | Evolved 2 slots: Utility x2 45186 | -2/Research | Spotted B-90 Cyclops 45252 | -2/Research | Lost 5 allies 45259 | -2/Research | Lost 3 parts (2p1u) 45259 | -2/Research | Destroyed B-90 Cyclops 45300 | -2/Research | Found Unknown Device 45300 | -2/Research | Identified Quantum Capacitor 45567 | -2/Research | P-80 Master assimilated allied Terminator 9b 45850 | -2/Research | Lost 3 parts (2u1w) 46250 | -2/Research | Found Fusion Bomb Launcher 46342 | -2/Research | Identified exit to Quarantine 46496 | -2/Research | Discovered new exit (range 35) 47081 | -2/Research | Garrison activated, responded to threat 47099 | -2/Research | System corruption reached 10% 47114 | -2/Research | Lost 6 allies 47120 | -2/Research | Identified Transdimensional Reconstructor 47120 | -2/Research | Warped through subspace 47135 | -2/Research | Destroyed 7 combat bots 47148 | -2/Research | Discovered new exit (range 26) 47151 | -2/Research | Lost 4 parts (1p1n1u1w) 47217 | -2/Research | First assault squad dispatched 47377 | -2/Research | Identified exit to Garrison 47377 | -2/Research | Entered Garrison 47440 | -2/Garrison | Triggered checkpoint 47469 | -2/Garrison | Garrison Relay disabled 47599 | -2/Garrison | Lost 3 allies 47679 | -2/Garrison | Build established: Botlord-Tank 47736 | -2/Garrison | Triggered checkpoint 47747 | -2/Garrison | Garrison Relay disabled 48038 | -2/Garrison | Spotted B-90 Cyclops 48041 | -2/Garrison | Spotted B-90 Cyclops 48043 | -2/Garrison | Assimilated Cyclops 9a with formatsys_high 48053 | -2/Garrison | Allies destroyed B-90 Cyclops 48076 | -2/Garrison | Lost 3 parts (1p1n1u) 48127 | -2/Garrison | Found Unknown Device 48127 | -2/Garrison | Identified Adv. Force Booster 48354 | -2/Garrison | Spotted B-90 Cyclops 48370 | -2/Garrison | Destroyed B-90 Cyclops 48371 | -2/Garrison | Triggered checkpoint 48428 | -2/Garrison | Lost 11 allies 48673 | -2/Garrison | Discovered new exit (range 15) 48821 | -2/Garrison | Triggered checkpoint 48858 | -2/Garrison | Garrison Relay disabled 48927 | -2/Garrison | Triggered checkpoint 48957 | -2/Garrison | Triggered checkpoint 48995 | -2/Garrison | Discovered new exit (range 12) 49010 | -2/Garrison | Expanded RIF knowledge: Signal Jamming 49120 | -2/Garrison | Garrison Relay disabled 49131 | -2/Garrison | Triggered checkpoint 49193 | -2/Garrison | Discovered new exit (range 15) 49526 | -2/Garrison | Found embedded Infiltrators 49533 | -2/Garrison | Triggered checkpoint 49598 | -2/Garrison | Learned Research security intel 49613 | -2/Garrison | Garrison Relay disabled 49669 | -2/Garrison | Entered Research 49669 | -2/Research | Accompanied by 8 allies 49846 | -2/Research | Found Quantum Capacitor 49895 | -2/Research | Identified exit to Access 49919 | -2/Research | First assault squad dispatched 50155 | -2/Research | Lost 5 allies 50283 | -2/Research | Found Unknown Device 50283 | -2/Research | Identified Launcher Loader 50334 | -2/Research | Identified exit to Garrison 50349 | -2/Research | Entered Garrison 50557 | -2/Garrison | Triggered checkpoint 50582 | -2/Garrison | Garrison Relay disabled 50759 | -2/Garrison | Triggered checkpoint 50793 | -2/Garrison | Triggered checkpoint 50795 | -2/Garrison | Spotted B-90 Cyclops 50829 | -2/Garrison | Allies destroyed B-90 Cyclops 50846 | -2/Garrison | Triggered checkpoint 50881 | -2/Garrison | Destroyed 7 combat bots 50892 | -2/Garrison | Lost 5 allies 51022 | -2/Garrison | Spotted Executioner 51046 | -2/Garrison | Destroyed Executioner 51157 | -2/Garrison | Triggered checkpoint 51174 | -2/Garrison | Discovered exit to Access (range 12) 51193 | -2/Garrison | Garrison Relay disabled 51353 | -2/Garrison | Triggered checkpoint 51559 | -2/Garrison | Discovered exit to Access (range 10) 51616 | -2/Garrison | Triggered checkpoint 51623 | -2/Garrison | Garrison Relay disabled 51717 | -2/Garrison | Found Unknown Hackware 51717 | -2/Garrison | Identified Relay Coupler [Proto] 51721 | -2/Garrison | Found Relay Coupler [Proto] 51725 | -2/Garrison | Found Relay Coupler [Proto] 51735 | -2/Garrison | Found Relay Coupler [Proto] 51779 | -2/Garrison | Learned Access security intel 51920 | -2/Garrison | Spotted B-90 Cyclops 52020 | -2/Garrison | Garrison Relay disabled 52094 | -2/Garrison | Discovered exit to Access (range 11) 52111 | -2/Garrison | Expanded RIF knowledge: Threat Obfuscation 52171 | -2/Garrison | Triggered checkpoint 52284 | -2/Garrison | Entered Access 52284 | -1/Access | Accompanied by 7 allies 52284 | -1/Access | Evolved 2 slots: Propulsion x2 52739 | -1/Access | Build established: Botlord-Assassin 53012 | -1/Access | P-80 Master assimilated allied Enforcer 9*29 53052 | -1/Access | Lost 3 allies 53135 | -1/Access | Discovered new exit (range 23) 53284 | -1/Access | First assault squad dispatched 53746 | -1/Access | P-80 Master assimilated allied Engineer 10a 54005 | -1/Access | Identified exit to Command 54129 | -1/Access | High security lockdown imminent 54209 | -1/Access | High security lockdown engaged 54223 | -1/Access | Entered Command 54274 | -1/Command | Found Fusion Bomb Launcher 54473 | -1/Command | First assault squad dispatched 54523 | -1/Command | Build established: Botlord-Tank 54750 | -1/Command | Spotted M Guard 54750 | -1/Command | Spotted M Guard 54751 | -1/Command | Spotted Combat Programmer 54752 | -1/Command | Spotted Combat Programmer 54757 | -1/Command | System corruption reached 10% 54797 | -1/Command | Combat Programmer assimilated allied Warden 10c 54825 | -1/Command | Core integrity fell below 50% 54840 | -1/Command | Assimilated M Guard with formatsys_high 54840 | -1/Command | Assimilated M Guard with formatsys_high 54847 | -1/Command | Allies destroyed Combat Programmer 54870 | -1/Command | Lost 21 parts (4p4n8u5w) 55100 | -1/Command | Build established: Botlord-Mutant 55442 | -1/Command | High security lockdown imminent 55482 | -1/Command | All MAIN.C guards destroyed 55522 | -1/Command | High security lockdown engaged 55526 | -1/Command | Lost 3 allies 55695 | -1/Command | Spotted Striker 55705 | -1/Command | Assimilated Striker with formatsys_high 55717 | -1/Command | Released all parts (19) 55835 | -1/Command | Core integrity fell below 20% 55837 | -1/Command | Spotted Executioner 55849 | -1/Command | Destroyed by Executioner with Helical Railgun Last Messages --------------- 55840_ Slug penetrates P-80 Master. 55840_ Slug penetrates Wall. 55840_ Field strength at 50. 55841_ K-01 Serf collects debris. 55841_ E-15 Imp destroyed. 55841_ Field strength at 37. 55842_ Field strength at 31. 55843_ Field strength at 12. 55843_ Stasis field depleted. 55845_ Triggered Stasis Trap. 55845_ A bubble of rippling energy engulfs the area. 55845_ Field strength at 94. 55845_ Penetrated by Slug. 55845_ Slug penetrates Wall. 55845_ Field strength at 79. 55846_ Field strength at 67. 55847_ Field strength at 43. 55848_ Field strength at 25. 55849_ Penetrated by Slug. [Achievement: 50k Club] Map ----- +----------------------------------------------------+ | #????????????????????#%#? """" ?# | | #????????????????????#%#? "" ???# # | | #????????????????????#%#?? ??# ## | | # ###??????????????????#%#?? ?#??## | | %# #??????????????????#[#??? ?????# | | #??????????????????#=##??####?????# | | #??????????????????#/"##########??# | | #??????????????????#%! !!! #??# | | ## #??????????????????#=# ! #??# | | # #??????????????????#/# !! #### | | # #??????????????????#!+= = ## | | % ## #??????????????????# ############## | | ## #??????????????????#= | | ## #??????????????????#!=! | | ## #????????#######???#!|** | | ## #???????? == ???#=!/=! | | ## #???????? == ????# |!=] | | ## #???????? = ????#=*//! | | # ##???????? ?????#!############### | | # ????????? * ?????#!#?????????????? | | # #????????? ??????#!#?????????????? | | ############# #????????? ??????# #?????????????? | | ?????????s #????#+####;#??????# #?????????????? | | ?????????ss #????+ #?????? ?????????????? | | ????????? s #????# #?C???? " ?????????????? | | ????????? #????# ^=@#?????? ?????????????? | | #######? #????# %/%#??????#+#?????????????? | | #? #????# !=!#??????????????????????? | | # ###### #??????????????????????? | | # #??????????????????????? | | + p #??????????????????????? | | # s p E #??????????????????????? | | ##"#### #??????????????????????? | | g %#####s#####??????????????????? | | # g #??????????????????? | | # #??????????????????? | | g# g #??????????????????? | | # " #??????????????????? | | "%" """ """#?????????????????? | | ##+#"# " "##?????????????????? | | ## ## "#??????????????????? | | ## "# " "#??????????????????? | | ## ## """""#??????????????????? | | ## ############??????????????????? | | #### + #?????????????????????????????? | | #### ## #?????????????????????????????? | | ## ## #?????????????????????????????? | | " ## ###+###????????????????????????????? | | " ## ## #????????????????????????????? | | T ## ## #????????????????????????????? | +----------------------------------------------------+ Best States ------------- Heat Dissipation 135 Coolant Potential 120 Energy Generation 70 Energy Capacity 1325 Matter Stores 445 Matter Capacity 450 Sight Range 22 Terrain Scan Range 24 Terrain Scan Density 210 Jamming Range 16 Power Amplification 30 Base Temperature (-) 200 Armor Coverage 1600 Resistance: KI 25 Resistance: TH 30 Resistance: EM 90 Propulsion Shielding 33 Point Defense Rating 160 Phase Shifting 10 Evasion (%) 62 Target Analysis 8 Recoil Reduction 6 Offensive Hacking 25 Defensive Hacking 16 Relay Coupler Types 5 Relay Coupler Value 131 Trap Extractor Capacity 6 Item Schematics ----------------- Plasma Cutter | -9/Materials | Scanalyzed Transmission Jammer | -6/Factory | Scanalyzed Imp. Light Armor Plating | -6/Factory | Scanalyzed Cargo Storage Unit | -2/Research | Hacked Robot Schematics ------------------ None Fabricated ------------ Quantum Reactor | x2 | -4/Factory | Preloaded Repaired ---------- Seismic Detector | 10% | -9/Materials Plasma Cutter | 99% | -9/Materials | Broken Transmission Jammer | 10% | -6/Factory Quantum Reactor | 4% | -4/Factory Particle Reactor | 13% | -4/Factory Alien Tech Used ----------------- Core Expander Integrated Dissipator Transdimensional Reconstructor Achievements -------------- 50k Club Batter Up Pwned Challenges ------------ None Game ------ Seed FactoryCoolingBeamcaster Manual? 0 Play Time 10:47:47 Cumulative 326.1 hours Start 2025.08.29 @ 06:41:11 End 2025.09.01 @ 12:10:46 Sessions 17 Manual Loads 0 Difficulty Rogue Special Mode None Game No. 135 Rogue 114 Adventurer 21 Explorer 0 Win Type - Total 13 Types 9/0/3/1/0/0/0/0/0/0 Lore% 51 Gallery% 70 Achievement% 63 Wizard Run 0 Options --------- Layout 1 ASCII 0 Keyboard 0 Movement Mouse Keybinds 0 Fullscreen 2 Font 32/SmallcapsGlow Map View 77x35 Zoom Use 0% Tactical HUD 1 Map Filters NONE Filters NONE Steam 1 RUN: d37ac91d-9cf9-4644-94de-c2332772424f